Workbook

Sheet Annexure_Sheet
A1: 1 | K1: 1 | L1: To | M1: 6
A2: =IF(VLOOKUP(SRN,Employee_Data!$A$1:$BU$987,MATCH("Title",Employee_Data!$A$1:$BW$1,0),0)="Mr.","M","F") -> F | C2: Salary Annexure
C3: CTC STRUCTURE & BENEFITS 2023 - 2024
C4: Employee Name | D4: =VLOOKUP(SRN,Employee_Data!$A$1:$BU$987,MATCH("Title",Employee_Data!$A$1:$BW$1,0),0)&" "&VLOOKUP(SRN,Employee_Data!$A$1:$BU$987,MATCH(Annexure_Sheet!C4,Employee_Data!$A$1:$BW$1,0),0) -> Ms. AVLEEN KUMAR | I4: This Sheet prepared by Kumar Ajit, and it's Free to download and use for All. Any paid Assistance Required: ajityadav121@gmail.com
C5: Emp.Code | D5: =VLOOKUP(SRN,Employee_Data!$A$1:$BU$987,MATCH(Annexure_Sheet!C5,Employee_Data!$A$1:$BW$1,0),0) -> E0001
C6: Designation | D6: =VLOOKUP(SRN,Employee_Data!$A$1:$BU$987,MATCH(Annexure_Sheet!C6,Employee_Data!$A$1:$BW$1,0),0) -> Manager
C7: STATE | D7: =VLOOKUP(SRN,Employee_Data!$A$1:$BU$987,MATCH(Annexure_Sheet!C7,Employee_Data!$A$1:$BW$1,0),0) -> Delhi
C8: Particulars | D8: Monthly (Rs.) | E8: Annual (Rs.)
C9: =TRANSPOSE(Employee_Data!$N$1:$U$1) -> Basic Salary | D9: =VLOOKUP(SRN,Employee_Data!$A$1:$BU$987,MATCH(Annexure_Sheet!C9,Employee_Data!$A$1:$BW$1,0),0) -> 20357 | E9: =ROUND(D9*12,0) -> 244284
C10: House Rent Allowance | D10: =VLOOKUP(SRN,Employee_Data!$A$1:$BU$987,MATCH(Annexure_Sheet!C10,Employee_Data!$A$1:$BW$1,0),0) -> 1018 | E10: =ROUND(D10*12,0) -> 12216
C11: Special Allowance | D11: =VLOOKUP(SRN,Employee_Data!$A$1:$BU$987,MATCH(Annexure_Sheet!C11,Employee_Data!$A$1:$BW$1,0),0) -> -1292 | E11: -15504
C12: Washing Allowance | D12: =VLOOKUP(SRN,Employee_Data!$A$1:$BU$987,MATCH(Annexure_Sheet!C12,Employee_Data!$A$1:$BW$1,0),0) -> 0 | E12: 0
C13: Uniform Allowance | D13: =VLOOKUP(SRN,Employee_Data!$A$1:$BU$987,MATCH(Annexure_Sheet!C13,Employee_Data!$A$1:$BW$1,0),0) -> 0 | E13: 0
C14: Child Education Allowance | D14: =VLOOKUP(SRN,Employee_Data!$A$1:$BU$987,MATCH(Annexure_Sheet!C14,Employee_Data!$A$1:$BW$1,0),0) -> 0 | E14: 0
C15: Fuel Reimbursement | D15: =VLOOKUP(SRN,Employee_Data!$A$1:$BU$987,MATCH(Annexure_Sheet!C15,Employee_Data!$A$1:$BW$1,0),0) -> 0 | E15: 0
C16: NPS Contribution | D16: =VLOOKUP(SRN,Employee_Data!$A$1:$BU$987,MATCH(Annexure_Sheet!C16,Employee_Data!$A$1:$BW$1,0),0) -> 0 | E16: 0
C17: Gross Salary [A] | D17: =SUM(D9:D16) -> 20083 | E17: =SUM(E9:E16) -> 240996
C18: =TRANSPOSE(Employee_Data!$W$1:$X$1) -> PF Employer | D18: =VLOOKUP(SRN,Employee_Data!$A$1:$BU$987,MATCH(Annexure_Sheet!C18,Employee_Data!$A$1:$BW$1,0),0) -> 2443 | E18: 29316
C19: ESIC Employer | D19: =VLOOKUP(SRN,Employee_Data!$A$1:$BU$987,MATCH(Annexure_Sheet!C19,Employee_Data!$A$1:$BW$1,0),0) -> 754 | E19: 9048
C20: Fixed Salary [B] | D20: =SUM(D17:D19) -> 23280 | E20: =SUM(E17:E19) -> 279360
C21: =TRANSPOSE(Employee_Data!$Z$1:$AB$1) -> Bonus | D21: =VLOOKUP(SRN,Employee_Data!$A$1:$BU$987,MATCH(Annexure_Sheet!C21,Employee_Data!$A$1:$BW$1,0),0) -> 1741 | E21: 20892
C22: Gratuity | D22: =VLOOKUP(SRN,Employee_Data!$A$1:$BU$987,MATCH(Annexure_Sheet!C22,Employee_Data!$A$1:$BW$1,0),0) -> 979 | E22: 11748
C23: Variable Pay | D23: =VLOOKUP(SRN,Employee_Data!$A$1:$BU$987,MATCH(Annexure_Sheet!C23,Employee_Data!$A$1:$BW$1,0),0) -> 0 | E23: 0
C24: CTC - Grand Total [C] | D24: =SUM(D20:D23) -> 26000 | E24: =SUM(E20:E23) -> 312000
C25: Deductions:
C26: PF Employee Contribution | D26: =D18 -> 2443 | E26: 29316
C27: ESIC Employee Contribution | D27: =IF(D19>0,ROUND(D17*0.75%,0),0) -> 151 | E27: 1812
C28: Labour Welfare Fund (LWF) | D28: =LWF(UPPER(D7),TODAY()) -> 1 | E28: =ROUND(D28*12,0) -> 12
C29: Professional Tax (P.Tax) | D29: =PTAX(UPPER(D7),D17,A2) -> 0 | E29: =ROUND(D29*12,0) -> 0
C30: Net In-Hand (Before Tax) [A - Deductions] | D30: =D17-D26-D27-D28-D29 -> 17488 | E30: =E17-E26-E27-E28-E29 -> 209856
C31: Note:
C32: * The relevant provisions of the Income Tax & other relevant statutes will be borne by you.
C33: * The statutory bonus payout will be as per the payment of Bonus Act, 1965.
C34: * In addition to the above you will also be entitled to:-
C35: • Gratuity as applicable under the Payment of Gratuity Act 1972.
C36: • Mediclaim, as per company policy for those who are not covered under ESIC.
C38: The company is committed to maintain the confidentiality of your compensation data. Please do not discuss this with any other employee, except your immediate superior and HR.
C41: Wishing you the very best.
C42: Best Regards,
C45: Kumar Singh
C46: Human Resource

Sheet Employee_Data
A1: SR | B1: Emp.Code | C1: Title | D1: Employee Name | E1: DOJ | F1: Designation | G1: STATE | H1: Worker's Skill | I1: PF Applicable | J1: PF Limit | K1: MONTHLY_CTC | L1: MINWAGES | M1: ANNUAL | N1: Basic Salary | O1: House Rent Allowance | P1: Special Allowance | Q1: Washing Allowance | R1: Uniform Allowance | S1: Child Education Allowance | T1: Fuel Reimbursement | U1: NPS Contribution | V1: Gross Salary [Total] | W1: PF Employer | X1: ESIC Employer | Y1: Fixed Salary [Total] | Z1: Bonus | AA1: Gratuity | AB1: Variable Pay | AC1: Monthly CTC | AD1: Annual CTC | AE1: DIFF | AF1: Error Remark
A2: =ROW()-1 -> 1 | B2: E0001 | C2: Ms. | D2: AVLEEN KUMAR | E2: 2012-03-31 | F2: Manager | G2: Delhi | H2: Skilled | I2: Yes | J2: Yes | K2: 26000 | L2: =IFERROR(VLOOKUP(G2,MinimumWages!$A$1:$R$60,MATCH(Employee_Data!H2,MinimumWages!$A$1:$R$1,0),0),0) -> 20903 | M2: =ROUND(K2*12,0) -> 312000 | N2: =ROUND(MAX(ROUNDUP(IF(K2>30000,K2/2,L2/3*2),-2),IFERROR(VLOOKUP(G2,MinimumWages!$A$1:$R$60,(MATCH(Employee_Data!H2,MinimumWages!$A$1:$R$1,0)-4),0),0)),0) -> 20357 | O2: =ROUND(IF(K2<30000,N2*5%,N2/2),0) -> 1018 | P2: -1292 | Q2: 0 | R2: 0 | S2: 0 | T2: 0 | U2: 0 | V2: =SUM(N2:U2) -> 20083 | W2: =IF(I2="Yes",ROUND(IF(J2="Limit",MIN((V2-O2),15000),IF(N2>15000,N2,MIN((V2-O2),15000)))*12%,0),0) -> 2443 | X2: =IF(V2>21000,0,ROUNDUP(V2*3.75%,0)) -> 754 | Y2: =SUM(V2:X2) -> 23280 | Z2: =IF(AND(N2<=21000,K2>0),ROUND(MAX(L2,7000)*8.33%,0),0) -> 1741 | AA2: =ROUND(N2/26*15/12,0) -> 979 | AB2: 0 | AC2: =SUM(Y2:AB2) -> 26000 | AD2: =ROUND(AC2*12,0) -> 312000 | AE2: =ROUND((M2-AD2)/12,0) -> 0 | AF2: =IF(AE2<>0,"Un-Matched CTC",IF(COUNTIF(N2:AE2,"<0")>0,"Less CTC","-")) -> Less CTC
A3: =ROW()-1 -> 2 | B3: E0002 | C3: Mrs. | D3: ANIL YADAV | E3: 2010-11-23 | F3: Executive | G3: Delhi | H3: Semi-Skilled | I3: Yes | J3: On-Basic | K3: 330908 | L3: =IFERROR(VLOOKUP(G3,MinimumWages!$A$1:$R$60,MATCH(Employee_Data!H3,MinimumWages!$A$1:$R$1,0),0),0) -> 18993 | M3: 3970896 | N3: =ROUND(MAX(ROUNDUP(IF(K3>30000,K3/2,L3/3*2),-2),IFERROR(VLOOKUP(G3,MinimumWages!$A$1:$R$60,(MATCH(Employee_Data!H3,MinimumWages!$A$1:$R$1,0)-4),0),0)),0) -> 165500 | O3: 82750 | P3: 54841 | Q3: 0 | R3: 0 | S3: 0 | T3: 0 | U3: 0 | V3: =SUM(N3:U3) -> 303091 | W3: 19860 | X3: =IF(V3>21000,0,ROUNDUP(V3*3.75%,0)) -> 0 | Y3: =SUM(V3:X3) -> 322951 | Z3: 0 | AA3: =ROUND(N3/26*15/12,0) -> 7957 | AB3: 0 | AC3: =SUM(Y3:AB3) -> 330908 | AD3: =ROUND(AC3*12,0) -> 3970896 | AE3: =ROUND((M3-AD3)/12,0) -> 0 | AF3: =IF(AE3<>0,"Un-Matched CTC",IF(COUNTIF(N3:AE3,"<0")>0,"Less CTC","-")) -> -
A4: 3 | B4: E0003 | C4: Ms. | D4: ANCHAL SHARMA | E4: 2011-04-01 | F4: Sr. Executive | G4: Haryana | H4: Skilled | I4: Yes | J4: Yes | K4: 42717 | L4: =IFERROR(VLOOKUP(G4,MinimumWages!$A$1:$R$60,MATCH(Employee_Data!H4,MinimumWages!$A$1:$R$1,0),0),0) -> 12803 | M4: 512604 | N4: =ROUND(MAX(ROUNDUP(IF(K4>30000,K4/2,L4/3*2),-2),IFERROR(VLOOKUP(G4,MinimumWages!$A$1:$R$60,(MATCH(Employee_Data!H4,MinimumWages!$A$1:$R$1,0)-4),0),0)),0) -> 21400 | O4: 10700 | P4: 7020 | Q4: 0 | R4: 0 | S4: 0 | T4: 0 | U4: 0 | V4: 39120 | W4: 2568 | X4: 0 | Y4: 41688 | Z4: 0 | AA4: 1029 | AB4: 0 | AC4: 42717 | AD4: 512604 | AE4: 0 | AF4: -
A5: 4 | B5: E0004 | C5: Mr. | D5: BRAHM MISHRA | E5: 2013-05-29 | F5: Sr. Executive | G5: Maharashtra | H5: Skilled | I5: Not-Applicable | J5: Yes | K5: 16000 | L5: =IFERROR(VLOOKUP(G5,MinimumWages!$A$1:$R$60,MATCH(Employee_Data!H5,MinimumWages!$A$1:$R$1,0),0),0) -> 14658 | M5: 192000 | N5: =ROUND(MAX(ROUNDUP(IF(K5>30000,K5/2,L5/3*2),-2),IFERROR(VLOOKUP(G5,MinimumWages!$A$1:$R$60,(MATCH(Employee_Data!H5,MinimumWages!$A$1:$R$1,0)-4),0),0)),0) -> 11632 | O5: 582 | P5: 1492 | Q5: 0 | R5: 0 | S5: 0 | T5: 0 | U5: 0 | V5: 13706 | W5: 0 | X5: 514 | Y5: 14220 | Z5: 1221 | AA5: 559 | AB5: 0 | AC5: 16000 | AD5: 192000 | AE5: 0 | AF5: -
A6: 5 | B6: E0005 | C6: Mr. | D6: PURAN UNIYAL | E6: 2019-11-30 | F6: Executive | G6: Bihar | H6: Skilled | I6: Yes | J6: Yes | K6: 45808 | L6: =IFERROR(VLOOKUP(G6,MinimumWages!$A$1:$R$60,MATCH(Employee_Data!H6,MinimumWages!$A$1:$R$1,0),0),0) -> 12766 | M6: 549696 | N6: =ROUND(MAX(ROUNDUP(IF(K6>30000,K6/2,L6/3*2),-2),IFERROR(VLOOKUP(G6,MinimumWages!$A$1:$R$60,(MATCH(Employee_Data!H6,MinimumWages!$A$1:$R$1,0)-4),0),0)),0) -> 23000 | O6: 11500 | P6: 7442 | Q6: 0 | R6: 0 | S6: 0 | T6: 0 | U6: 0 | V6: 41942 | W6: 2760 | X6: 0 | Y6: 44702 | Z6: 0 | AA6: 1106 | AB6: 0 | AC6: 45808 | AD6: 549696 | AE6: 0 | AF6: -
A7: 6 | B7: E0006 | C7: Mrs. | D7: MAHESH RAJBHAR | E7: 2009-04-12 | F7: Sr. Manager | G7: Maharashtra | H7: Skilled | I7: Yes | J7: Yes | K7: 69975 | L7: =IFERROR(VLOOKUP(G7,MinimumWages!$A$1:$R$60,MATCH(Employee_Data!H7,MinimumWages!$A$1:$R$1,0),0),0) -> 14658 | M7: 839700 | N7: =ROUND(MAX(ROUNDUP(IF(K7>30000,K7/2,L7/3*2),-2),IFERROR(VLOOKUP(G7,MinimumWages!$A$1:$R$60,(MATCH(Employee_Data!H7,MinimumWages!$A$1:$R$1,0)-4),0),0)),0) -> 35000 | O7: 17500 | P7: 11592 | Q7: 0 | R7: 0 | S7: 0 | T7: 0 | U7: 0 | V7: 64092 | W7: 4200 | X7: 0 | Y7: 68292 | Z7: 0 | AA7: 1683 | AB7: 0 | AC7: 69975 | AD7: 839700 | AE7: 0 | AF7: -
A8: 7 | L8: =IFERROR(VLOOKUP(G8,MinimumWages!$A$1:$R$60,MATCH(Employee_Data!H8,MinimumWages!$A$1:$R$1,0),0),0) -> 0 | M8: =ROUND(K8*12,0) -> 0 | N8: =ROUND(MAX(ROUNDUP(IF(K8>30000,K8/2,L8/3*2),-2),IFERROR(VLOOKUP(G8,MinimumWages!$A$1:$R$60,(MATCH(Employee_Data!H8,MinimumWages!$A$1:$R$1,0)-4),0),0)),0) -> 0 | O8: =ROUND(IF(K8<30000,N8*5%,N8/2),0) -> 0 | P8: 0 | Q8: 0 | R8: 0 | S8: 0 | T8: 0 | U8: 0 | V8: =SUM(N8:U8) -> 0 | W8: =IF(I8="Yes",ROUND(IF(J8="Limit",MIN((V8-O8),15000),IF(N8>15000,N8,MIN((V8-O8),15000)))*12%,0),0) -> 0 | X8: =IF(V8>21000,0,ROUNDUP(V8*3.75%,0)) -> 0 | Y8: =SUM(V8:X8) -> 0 | Z8: =IF(AND(N8<=21000,K8>0),ROUND(MAX(L8,7000)*8.33%,0),0) -> 0 | AA8: =ROUND(N8/26*15/12,0) -> 0 | AB8: 0 | AC8: =SUM(Y8:AB8) -> 0 | AD8: 0 | AE8: =ROUND((M8-AD8)/12,0) -> 0 | AF8: =IF(AE8<>0,"Un-Matched CTC",IF(COUNTIF(N8:AE8,"<0")>0,"Less CTC","-")) -> -
A9: 8 | L9: =IFERROR(VLOOKUP(G9,MinimumWages!$A$1:$R$60,MATCH(Employee_Data!H9,MinimumWages!$A$1:$R$1,0),0),0) -> 0 | M9: 0 | N9: =ROUND(MAX(ROUNDUP(IF(K9>30000,K9/2,L9/3*2),-2),IFERROR(VLOOKUP(G9,MinimumWages!$A$1:$R$60,(MATCH(Employee_Data!H9,MinimumWages!$A$1:$R$1,0)-4),0),0)),0) -> 0 | O9: 0 | P9: 0 | Q9: 0 | R9: 0 | S9: 0 | T9: 0 | U9: 0 | V9: 0 | W9: 0 | X9: 0 | Y9: 0 | Z9: 0 | AA9: 0 | AB9: 0 | AC9: 0 | AD9: 0 | AE9: 0 | AF9: -
A10: 9 | L10: =IFERROR(VLOOKUP(G10,MinimumWages!$A$1:$R$60,MATCH(Employee_Data!H10,MinimumWages!$A$1:$R$1,0),0),0) -> 0 | M10: 0 | N10: =ROUND(MAX(ROUNDUP(IF(K10>30000,K10/2,L10/3*2),-2),IFERROR(VLOOKUP(G10,MinimumWages!$A$1:$R$60,(MATCH(Employee_Data!H10,MinimumWages!$A$1:$R$1,0)-4),0),0)),0) -> 0 | O10: 0 | P10: 0 | Q10: 0 | R10: 0 | S10: 0 | T10: 0 | U10: 0 | V10: 0 | W10: 0 | X10: 0 | Y10: 0 | Z10: 0 | AA10: 0 | AB10: 0 | AC10: 0 | AD10: 0 | AE10: 0 | AF10: -
A11: 10 | L11: =IFERROR(VLOOKUP(G11,MinimumWages!$A$1:$R$60,MATCH(Employee_Data!H11,MinimumWages!$A$1:$R$1,0),0),0) -> 0 | M11: 0 | N11: =ROUND(MAX(ROUNDUP(IF(K11>30000,K11/2,L11/3*2),-2),IFERROR(VLOOKUP(G11,MinimumWages!$A$1:$R$60,(MATCH(Employee_Data!H11,MinimumWages!$A$1:$R$1,0)-4),0),0)),0) -> 0 | O11: 0 | P11: 0 | Q11: 0 | R11: 0 | S11: 0 | T11: 0 | U11: 0 | V11: 0 | W11: 0 | X11: 0 | Y11: 0 | Z11: 0 | AA11: 0 | AB11: 0 | AC11: 0 | AD11: 0 | AE11: 0 | AF11: -
A12: 11 | L12: =IFERROR(VLOOKUP(G12,MinimumWages!$A$1:$R$60,MATCH(Employee_Data!H12,MinimumWages!$A$1:$R$1,0),0),0) -> 0 | M12: 0 | N12: =ROUND(MAX(ROUNDUP(IF(K12>30000,K12/2,L12/3*2),-2),IFERROR(VLOOKUP(G12,MinimumWages!$A$1:$R$60,(MATCH(Employee_Data!H12,MinimumWages!$A$1:$R$1,0)-4),0),0)),0) -> 0 | O12: 0 | P12: 0 | Q12: 0 | R12: 0 | S12: 0 | T12: 0 | U12: 0 | V12: 0 | W12: 0 | X12: 0 | Y12: 0 | Z12: 0 | AA12: 0 | AB12: 0 | AC12: 0 | AD12: 0 | AE12: 0 | AF12: -
A13: 12 | L13: =IFERROR(VLOOKUP(G13,MinimumWages!$A$1:$R$60,MATCH(Employee_Data!H13,MinimumWages!$A$1:$R$1,0),0),0) -> 0 | M13: 0 | N13: =ROUND(MAX(ROUNDUP(IF(K13>30000,K13/2,L13/3*2),-2),IFERROR(VLOOKUP(G13,MinimumWages!$A$1:$R$60,(MATCH(Employee_Data!H13,MinimumWages!$A$1:$R$1,0)-4),0),0)),0) -> 0 | O13: 0 | P13: 0 | Q13: 0 | R13: 0 | S13: 0 | T13: 0 | U13: 0 | V13: 0 | W13: 0 | X13: 0 | Y13: 0 | Z13: 0 | AA13: 0 | AB13: 0 | AC13: 0 | AD13: 0 | AE13: 0 | AF13: -
A14: 13 | L14: =IFERROR(VLOOKUP(G14,MinimumWages!$A$1:$R$60,MATCH(Employee_Data!H14,MinimumWages!$A$1:$R$1,0),0),0) -> 0 | M14: 0 | N14: =ROUND(MAX(ROUNDUP(IF(K14>30000,K14/2,L14/3*2),-2),IFERROR(VLOOKUP(G14,MinimumWages!$A$1:$R$60,(MATCH(Employee_Data!H14,MinimumWages!$A$1:$R$1,0)-4),0),0)),0) -> 0 | O14: 0 | P14: 0 | Q14: 0 | R14: 0 | S14: 0 | T14: 0 | U14: 0 | V14: 0 | W14: 0 | X14: 0 | Y14: 0 | Z14: 0 | AA14: 0 | AB14: 0 | AC14: 0 | AD14: 0 | AE14: 0 | AF14: -
A15: 14 | L15: =IFERROR(VLOOKUP(G15,MinimumWages!$A$1:$R$60,MATCH(Employee_Data!H15,MinimumWages!$A$1:$R$1,0),0),0) -> 0 | M15: 0 | N15: =ROUND(MAX(ROUNDUP(IF(K15>30000,K15/2,L15/3*2),-2),IFERROR(VLOOKUP(G15,MinimumWages!$A$1:$R$60,(MATCH(Employee_Data!H15,MinimumWages!$A$1:$R$1,0)-4),0),0)),0) -> 0 | O15: 0 | P15: 0 | Q15: 0 | R15: 0 | S15: 0 | T15: 0 | U15: 0 | V15: 0 | W15: 0 | X15: 0 | Y15: 0 | Z15: 0 | AA15: 0 | AB15: 0 | AC15: 0 | AD15: 0 | AE15: 0 | AF15: -
A16: 15 | L16: =IFERROR(VLOOKUP(G16,MinimumWages!$A$1:$R$60,MATCH(Employee_Data!H16,MinimumWages!$A$1:$R$1,0),0),0) -> 0 | M16: 0 | N16: =ROUND(MAX(ROUNDUP(IF(K16>30000,K16/2,L16/3*2),-2),IFERROR(VLOOKUP(G16,MinimumWages!$A$1:$R$60,(MATCH(Employee_Data!H16,MinimumWages!$A$1:$R$1,0)-4),0),0)),0) -> 0 | O16: 0 | P16: 0 | Q16: 0 | R16: 0 | S16: 0 | T16: 0 | U16: 0 | V16: 0 | W16: 0 | X16: 0 | Y16: 0 | Z16: 0 | AA16: 0 | AB16: 0 | AC16: 0 | AD16: 0 | AE16: 0 | AF16: -
A17: 16 | L17: =IFERROR(VLOOKUP(G17,MinimumWages!$A$1:$R$60,MATCH(Employee_Data!H17,MinimumWages!$A$1:$R$1,0),0),0) -> 0 | M17: 0 | N17: =ROUND(MAX(ROUNDUP(IF(K17>30000,K17/2,L17/3*2),-2),IFERROR(VLOOKUP(G17,MinimumWages!$A$1:$R$60,(MATCH(Employee_Data!H17,MinimumWages!$A$1:$R$1,0)-4),0),0)),0) -> 0 | O17: 0 | P17: 0 | Q17: 0 | R17: 0 | S17: 0 | T17: 0 | U17: 0 | V17: 0 | W17: 0 | X17: 0 | Y17: 0 | Z17: 0 | AA17: 0 | AB17: 0 | AC17: 0 | AD17: 0 | AE17: 0 | AF17: -
A18: 17 | L18: =IFERROR(VLOOKUP(G18,MinimumWages!$A$1:$R$60,MATCH(Employee_Data!H18,MinimumWages!$A$1:$R$1,0),0),0) -> 0 | M18: 0 | N18: =ROUND(MAX(ROUNDUP(IF(K18>30000,K18/2,L18/3*2),-2),IFERROR(VLOOKUP(G18,MinimumWages!$A$1:$R$60,(MATCH(Employee_Data!H18,MinimumWages!$A$1:$R$1,0)-4),0),0)),0) -> 0 | O18: 0 | P18: 0 | Q18: 0 | R18: 0 | S18: 0 | T18: 0 | U18: 0 | V18: 0 | W18: 0 | X18: 0 | Y18: 0 | Z18: 0 | AA18: 0 | AB18: 0 | AC18: 0 | AD18: 0 | AE18: 0 | AF18: -
A19: 18 | L19: =IFERROR(VLOOKUP(G19,MinimumWages!$A$1:$R$60,MATCH(Employee_Data!H19,MinimumWages!$A$1:$R$1,0),0),0) -> 0 | M19: 0 | N19: =ROUND(MAX(ROUNDUP(IF(K19>30000,K19/2,L19/3*2),-2),IFERROR(VLOOKUP(G19,MinimumWages!$A$1:$R$60,(MATCH(Employee_Data!H19,MinimumWages!$A$1:$R$1,0)-4),0),0)),0) -> 0 | O19: 0 | P19: 0 | Q19: 0 | R19: 0 | S19: 0 | T19: 0 | U19: 0 | V19: 0 | W19: 0 | X19: 0 | Y19: 0 | Z19: 0 | AA19: 0 | AB19: 0 | AC19: 0 | AD19: 0 | AE19: 0 | AF19: -
A20: 19 | L20: =IFERROR(VLOOKUP(G20,MinimumWages!$A$1:$R$60,MATCH(Employee_Data!H20,MinimumWages!$A$1:$R$1,0),0),0) -> 0 | M20: 0 | N20: =ROUND(MAX(ROUNDUP(IF(K20>30000,K20/2,L20/3*2),-2),IFERROR(VLOOKUP(G20,MinimumWages!$A$1:$R$60,(MATCH(Employee_Data!H20,MinimumWages!$A$1:$R$1,0)-4),0),0)),0) -> 0 | O20: 0 | P20: 0 | Q20: 0 | R20: 0 | S20: 0 | T20: 0 | U20: 0 | V20: 0 | W20: 0 | X20: 0 | Y20: 0 | Z20: 0 | AA20: 0 | AB20: 0 | AC20: 0 | AD20: 0 | AE20: 0 | AF20: -
A21: 20 | L21: =IFERROR(VLOOKUP(G21,MinimumWages!$A$1:$R$60,MATCH(Employee_Data!H21,MinimumWages!$A$1:$R$1,0),0),0) -> 0 | M21: 0 | N21: =ROUND(MAX(ROUNDUP(IF(K21>30000,K21/2,L21/3*2),-2),IFERROR(VLOOKUP(G21,MinimumWages!$A$1:$R$60,(MATCH(Employee_Data!H21,MinimumWages!$A$1:$R$1,0)-4),0),0)),0) -> 0 | O21: 0 | P21: 0 | Q21: 0 | R21: 0 | S21: 0 | T21: 0 | U21: 0 | V21: 0 | W21: 0 | X21: 0 | Y21: 0 | Z21: 0 | AA21: 0 | AB21: 0 | AC21: 0 | AD21: 0 | AE21: 0 | AF21: -
A22: 21 | L22: =IFERROR(VLOOKUP(G22,MinimumWages!$A$1:$R$60,MATCH(Employee_Data!H22,MinimumWages!$A$1:$R$1,0),0),0) -> 0 | M22: 0 | N22: =ROUND(MAX(ROUNDUP(IF(K22>30000,K22/2,L22/3*2),-2),IFERROR(VLOOKUP(G22,MinimumWages!$A$1:$R$60,(MATCH(Employee_Data!H22,MinimumWages!$A$1:$R$1,0)-4),0),0)),0) -> 0 | O22: 0 | P22: 0 | Q22: 0 | R22: 0 | S22: 0 | T22: 0 | U22: 0 | V22: 0 | W22: 0 | X22: 0 | Y22: 0 | Z22: 0 | AA22: 0 | AB22: 0 | AC22: 0 | AD22: 0 | AE22: 0 | AF22: -
A23: 22 | L23: =IFERROR(VLOOKUP(G23,MinimumWages!$A$1:$R$60,MATCH(Employee_Data!H23,MinimumWages!$A$1:$R$1,0),0),0) -> 0 | M23: 0 | N23: =ROUND(MAX(ROUNDUP(IF(K23>30000,K23/2,L23/3*2),-2),IFERROR(VLOOKUP(G23,MinimumWages!$A$1:$R$60,(MATCH(Employee_Data!H23,MinimumWages!$A$1:$R$1,0)-4),0),0)),0) -> 0 | O23: 0 | P23: 0 | Q23: 0 | R23: 0 | S23: 0 | T23: 0 | U23: 0 | V23: 0 | W23: 0 | X23: 0 | Y23: 0 | Z23: 0 | AA23: 0 | AB23: 0 | AC23: 0 | AD23: 0 | AE23: 0 | AF23: -
A24: 23 | L24: =IFERROR(VLOOKUP(G24,MinimumWages!$A$1:$R$60,MATCH(Employee_Data!H24,MinimumWages!$A$1:$R$1,0),0),0) -> 0 | M24: 0 | N24: =ROUND(MAX(ROUNDUP(IF(K24>30000,K24/2,L24/3*2),-2),IFERROR(VLOOKUP(G24,MinimumWages!$A$1:$R$60,(MATCH(Employee_Data!H24,MinimumWages!$A$1:$R$1,0)-4),0),0)),0) -> 0 | O24: 0 | P24: 0 | Q24: 0 | R24: 0 | S24: 0 | T24: 0 | U24: 0 | V24: 0 | W24: 0 | X24: 0 | Y24: 0 | Z24: 0 | AA24: 0 | AB24: 0 | AC24: 0 | AD24: 0 | AE24: 0 | AF24: -
A25: 24 | L25: =IFERROR(VLOOKUP(G25,MinimumWages!$A$1:$R$60,MATCH(Employee_Data!H25,MinimumWages!$A$1:$R$1,0),0),0) -> 0 | M25: 0 | N25: =ROUND(MAX(ROUNDUP(IF(K25>30000,K25/2,L25/3*2),-2),IFERROR(VLOOKUP(G25,MinimumWages!$A$1:$R$60,(MATCH(Employee_Data!H25,MinimumWages!$A$1:$R$1,0)-4),0),0)),0) -> 0 | O25: 0 | P25: 0 | Q25: 0 | R25: 0 | S25: 0 | T25: 0 | U25: 0 | V25: 0 | W25: 0 | X25: 0 | Y25: 0 | Z25: 0 | AA25: 0 | AB25: 0 | AC25: 0 | AD25: 0 | AE25: 0 | AF25: -
A26: 25 | L26: =IFERROR(VLOOKUP(G26,MinimumWages!$A$1:$R$60,MATCH(Employee_Data!H26,MinimumWages!$A$1:$R$1,0),0),0) -> 0 | M26: 0 | N26: =ROUND(MAX(ROUNDUP(IF(K26>30000,K26/2,L26/3*2),-2),IFERROR(VLOOKUP(G26,MinimumWages!$A$1:$R$60,(MATCH(Employee_Data!H26,MinimumWages!$A$1:$R$1,0)-4),0),0)),0) -> 0 | O26: 0 | P26: 0 | Q26: 0 | R26: 0 | S26: 0 | T26: 0 | U26: 0 | V26: 0 | W26: 0 | X26: 0 | Y26: 0 | Z26: 0 | AA26: 0 | AB26: 0 | AC26: 0 | AD26: 0 | AE26: 0 | AF26: -
A27: 26 | L27: =IFERROR(VLOOKUP(G27,MinimumWages!$A$1:$R$60,MATCH(Employee_Data!H27,MinimumWages!$A$1:$R$1,0),0),0) -> 0 | M27: 0 | N27: =ROUND(MAX(ROUNDUP(IF(K27>30000,K27/2,L27/3*2),-2),IFERROR(VLOOKUP(G27,MinimumWages!$A$1:$R$60,(MATCH(Employee_Data!H27,MinimumWages!$A$1:$R$1,0)-4),0),0)),0) -> 0 | O27: 0 | P27: 0 | Q27: 0 | R27: 0 | S27: 0 | T27: 0 | U27: 0 | V27: 0 | W27: 0 | X27: 0 | Y27: 0 | Z27: 0 | AA27: 0 | AB27: 0 | AC27: 0 | AD27: 0 | AE27: 0 | AF27: -
A28: 27 | L28: =IFERROR(VLOOKUP(G28,MinimumWages!$A$1:$R$60,MATCH(Employee_Data!H28,MinimumWages!$A$1:$R$1,0),0),0) -> 0 | M28: 0 | N28: =ROUND(MAX(ROUNDUP(IF(K28>30000,K28/2,L28/3*2),-2),IFERROR(VLOOKUP(G28,MinimumWages!$A$1:$R$60,(MATCH(Employee_Data!H28,MinimumWages!$A$1:$R$1,0)-4),0),0)),0) -> 0 | O28: 0 | P28: 0 | Q28: 0 | R28: 0 | S28: 0 | T28: 0 | U28: 0 | V28: 0 | W28: 0 | X28: 0 | Y28: 0 | Z28: 0 | AA28: 0 | AB28: 0 | AC28: 0 | AD28: 0 | AE28: 0 | AF28: -
A29: 28 | L29: =IFERROR(VLOOKUP(G29,MinimumWages!$A$1:$R$60,MATCH(Employee_Data!H29,MinimumWages!$A$1:$R$1,0),0),0) -> 0 | M29: 0 | N29: =ROUND(MAX(ROUNDUP(IF(K29>30000,K29/2,L29/3*2),-2),IFERROR(VLOOKUP(G29,MinimumWages!$A$1:$R$60,(MATCH(Employee_Data!H29,MinimumWages!$A$1:$R$1,0)-4),0),0)),0) -> 0 | O29: 0 | P29: 0 | Q29: 0 | R29: 0 | S29: 0 | T29: 0 | U29: 0 | V29: 0 | W29: 0 | X29: 0 | Y29: 0 | Z29: 0 | AA29: 0 | AB29: 0 | AC29: 0 | AD29: 0 | AE29: 0 | AF29: -
A30: 29 | L30: =IFERROR(VLOOKUP(G30,MinimumWages!$A$1:$R$60,MATCH(Employee_Data!H30,MinimumWages!$A$1:$R$1,0),0),0) -> 0 | M30: 0 | N30: =ROUND(MAX(ROUNDUP(IF(K30>30000,K30/2,L30/3*2),-2),IFERROR(VLOOKUP(G30,MinimumWages!$A$1:$R$60,(MATCH(Employee_Data!H30,MinimumWages!$A$1:$R$1,0)-4),0),0)),0) -> 0 | O30: 0 | P30: 0 | Q30: 0 | R30: 0 | S30: 0 | T30: 0 | U30: 0 | V30: 0 | W30: 0 | X30: 0 | Y30: 0 | Z30: 0 | AA30: 0 | AB30: 0 | AC30: 0 | AD30: 0 | AE30: 0 | AF30: -
A31: 30 | L31: =IFERROR(VLOOKUP(G31,MinimumWages!$A$1:$R$60,MATCH(Employee_Data!H31,MinimumWages!$A$1:$R$1,0),0),0) -> 0 | M31: =ROUND(K31*12,0) -> 0 | N31: =ROUND(MAX(ROUNDUP(IF(K31>30000,K31/2,L31/3*2),-2),IFERROR(VLOOKUP(G31,MinimumWages!$A$1:$R$60,(MATCH(Employee_Data!H31,MinimumWages!$A$1:$R$1,0)-4),0),0)),0) -> 0 | O31: =ROUND(IF(K31<30000,N31*5%,N31/2),0) -> 0 | P31: 0 | Q31: 0 | R31: 0 | S31: 0 | T31: 0 | U31: 0 | V31: =SUM(N31:U31) -> 0 | W31: =IF(I31="Yes",ROUND(IF(J31="Limit",MIN((V31-O31),15000),IF(N31>15000,N31,MIN((V31-O31),15000)))*12%,0),0) -> 0 | X31: =IF(V31>21000,0,ROUNDUP(V31*3.75%,0)) -> 0 | Y31: =SUM(V31:X31) -> 0 | Z31: =IF(AND(N31<=21000,K31>0),ROUND(MAX(L31,7000)*8.33%,0),0) -> 0 | AA31: =ROUND(N31/26*15/12,0) -> 0 | AB31: 0 | AC31: =SUM(Y31:AB31) -> 0 | AD31: 0 | AE31: =ROUND((M31-AD31)/12,0) -> 0 | AF31: =IF(AE31<>0,"Un-Matched CTC",IF(COUNTIF(N31:AE31,"<0")>0,"Less CTC","-")) -> -
A32: 31 | L32: =IFERROR(VLOOKUP(G32,MinimumWages!$A$1:$R$60,MATCH(Employee_Data!H32,MinimumWages!$A$1:$R$1,0),0),0) -> 0 | M32: 0 | N32: =ROUND(MAX(ROUNDUP(IF(K32>30000,K32/2,L32/3*2),-2),IFERROR(VLOOKUP(G32,MinimumWages!$A$1:$R$60,(MATCH(Employee_Data!H32,MinimumWages!$A$1:$R$1,0)-4),0),0)),0) -> 0 | O32: 0 | P32: 0 | Q32: 0 | R32: 0 | S32: 0 | T32: 0 | U32: 0 | V32: 0 | W32: 0 | X32: 0 | Y32: 0 | Z32: 0 | AA32: 0 | AB32: 0 | AC32: 0 | AD32: 0 | AE32: 0 | AF32: -
A33: 32 | L33: =IFERROR(VLOOKUP(G33,MinimumWages!$A$1:$R$60,MATCH(Employee_Data!H33,MinimumWages!$A$1:$R$1,0),0),0) -> 0 | M33: 0 | N33: =ROUND(MAX(ROUNDUP(IF(K33>30000,K33/2,L33/3*2),-2),IFERROR(VLOOKUP(G33,MinimumWages!$A$1:$R$60,(MATCH(Employee_Data!H33,MinimumWages!$A$1:$R$1,0)-4),0),0)),0) -> 0 | O33: 0 | P33: 0 | Q33: 0 | R33: 0 | S33: 0 | T33: 0 | U33: 0 | V33: 0 | W33: 0 | X33: 0 | Y33: 0 | Z33: 0 | AA33: 0 | AB33: 0 | AC33: 0 | AD33: 0 | AE33: 0 | AF33: -
A34: 33 | L34: =IFERROR(VLOOKUP(G34,MinimumWages!$A$1:$R$60,MATCH(Employee_Data!H34,MinimumWages!$A$1:$R$1,0),0),0) -> 0 | M34: 0 | N34: =ROUND(MAX(ROUNDUP(IF(K34>30000,K34/2,L34/3*2),-2),IFERROR(VLOOKUP(G34,MinimumWages!$A$1:$R$60,(MATCH(Employee_Data!H34,MinimumWages!$A$1:$R$1,0)-4),0),0)),0) -> 0 | O34: 0 | P34: 0 | Q34: 0 | R34: 0 | S34: 0 | T34: 0 | U34: 0 | V34: 0 | W34: 0 | X34: 0 | Y34: 0 | Z34: 0 | AA34: 0 | AB34: 0 | AC34: 0 | AD34: 0 | AE34: 0 | AF34: -
A35: 34 | L35: =IFERROR(VLOOKUP(G35,MinimumWages!$A$1:$R$60,MATCH(Employee_Data!H35,MinimumWages!$A$1:$R$1,0),0),0) -> 0 | M35: 0 | N35: =ROUND(MAX(ROUNDUP(IF(K35>30000,K35/2,L35/3*2),-2),IFERROR(VLOOKUP(G35,MinimumWages!$A$1:$R$60,(MATCH(Employee_Data!H35,MinimumWages!$A$1:$R$1,0)-4),0),0)),0) -> 0 | O35: 0 | P35: 0 | Q35: 0 | R35: 0 | S35: 0 | T35: 0 | U35: 0 | V35: 0 | W35: 0 | X35: 0 | Y35: 0 | Z35: 0 | AA35: 0 | AB35: 0 | AC35: 0 | AD35: 0 | AE35: 0 | AF35: -
A36: 35 | L36: =IFERROR(VLOOKUP(G36,MinimumWages!$A$1:$R$60,MATCH(Employee_Data!H36,MinimumWages!$A$1:$R$1,0),0),0) -> 0 | M36: 0 | N36: =ROUND(MAX(ROUNDUP(IF(K36>30000,K36/2,L36/3*2),-2),IFERROR(VLOOKUP(G36,MinimumWages!$A$1:$R$60,(MATCH(Employee_Data!H36,MinimumWages!$A$1:$R$1,0)-4),0),0)),0) -> 0 | O36: 0 | P36: 0 | Q36: 0 | R36: 0 | S36: 0 | T36: 0 | U36: 0 | V36: 0 | W36: 0 | X36: 0 | Y36: 0 | Z36: 0 | AA36: 0 | AB36: 0 | AC36: 0 | AD36: 0 | AE36: 0 | AF36: -
A37: 36 | L37: =IFERROR(VLOOKUP(G37,MinimumWages!$A$1:$R$60,MATCH(Employee_Data!H37,MinimumWages!$A$1:$R$1,0),0),0) -> 0 | M37: 0 | N37: =ROUND(MAX(ROUNDUP(IF(K37>30000,K37/2,L37/3*2),-2),IFERROR(VLOOKUP(G37,MinimumWages!$A$1:$R$60,(MATCH(Employee_Data!H37,MinimumWages!$A$1:$R$1,0)-4),0),0)),0) -> 0 | O37: 0 | P37: 0 | Q37: 0 | R37: 0 | S37: 0 | T37: 0 | U37: 0 | V37: 0 | W37: 0 | X37: 0 | Y37: 0 | Z37: 0 | AA37: 0 | AB37: 0 | AC37: 0 | AD37: 0 | AE37: 0 | AF37: -
A38: 37 | L38: =IFERROR(VLOOKUP(G38,MinimumWages!$A$1:$R$60,MATCH(Employee_Data!H38,MinimumWages!$A$1:$R$1,0),0),0) -> 0 | M38: 0 | N38: =ROUND(MAX(ROUNDUP(IF(K38>30000,K38/2,L38/3*2),-2),IFERROR(VLOOKUP(G38,MinimumWages!$A$1:$R$60,(MATCH(Employee_Data!H38,MinimumWages!$A$1:$R$1,0)-4),0),0)),0) -> 0 | O38: 0 | P38: 0 | Q38: 0 | R38: 0 | S38: 0 | T38: 0 | U38: 0 | V38: 0 | W38: 0 | X38: 0 | Y38: 0 | Z38: 0 | AA38: 0 | AB38: 0 | AC38: 0 | AD38: 0 | AE38: 0 | AF38: -
A39: 38 | L39: =IFERROR(VLOOKUP(G39,MinimumWages!$A$1:$R$60,MATCH(Employee_Data!H39,MinimumWages!$A$1:$R$1,0),0),0) -> 0 | M39: 0 | N39: =ROUND(MAX(ROUNDUP(IF(K39>30000,K39/2,L39/3*2),-2),IFERROR(VLOOKUP(G39,MinimumWages!$A$1:$R$60,(MATCH(Employee_Data!H39,MinimumWages!$A$1:$R$1,0)-4),0),0)),0) -> 0 | O39: 0 | P39: 0 | Q39: 0 | R39: 0 | S39: 0 | T39: 0 | U39: 0 | V39: 0 | W39: 0 | X39: 0 | Y39: 0 | Z39: 0 | AA39: 0 | AB39: 0 | AC39: 0 | AD39: 0 | AE39: 0 | AF39: -
A40: 39 | L40: =IFERROR(VLOOKUP(G40,MinimumWages!$A$1:$R$60,MATCH(Employee_Data!H40,MinimumWages!$A$1:$R$1,0),0),0) -> 0 | M40: 0 | N40: =ROUND(MAX(ROUNDUP(IF(K40>30000,K40/2,L40/3*2),-2),IFERROR(VLOOKUP(G40,MinimumWages!$A$1:$R$60,(MATCH(Employee_Data!H40,MinimumWages!$A$1:$R$1,0)-4),0),0)),0) -> 0 | O40: 0 | P40: 0 | Q40: 0 | R40: 0 | S40: 0 | T40: 0 | U40: 0 | V40: 0 | W40: 0 | X40: 0 | Y40: 0 | Z40: 0 | AA40: 0 | AB40: 0 | AC40: 0 | AD40: 0 | AE40: 0 | AF40: -
A41: 40 | L41: =IFERROR(VLOOKUP(G41,MinimumWages!$A$1:$R$60,MATCH(Employee_Data!H41,MinimumWages!$A$1:$R$1,0),0),0) -> 0 | M41: 0 | N41: =ROUND(MAX(ROUNDUP(IF(K41>30000,K41/2,L41/3*2),-2),IFERROR(VLOOKUP(G41,MinimumWages!$A$1:$R$60,(MATCH(Employee_Data!H41,MinimumWages!$A$1:$R$1,0)-4),0),0)),0) -> 0 | O41: 0 | P41: 0 | Q41: 0 | R41: 0 | S41: 0 | T41: 0 | U41: 0 | V41: 0 | W41: 0 | X41: 0 | Y41: 0 | Z41: 0 | AA41: 0 | AB41: 0 | AC41: 0 | AD41: 0 | AE41: 0 | AF41: -
A42: 41 | L42: =IFERROR(VLOOKUP(G42,MinimumWages!$A$1:$R$60,MATCH(Employee_Data!H42,MinimumWages!$A$1:$R$1,0),0),0) -> 0 | M42: 0 | N42: =ROUND(MAX(ROUNDUP(IF(K42>30000,K42/2,L42/3*2),-2),IFERROR(VLOOKUP(G42,MinimumWages!$A$1:$R$60,(MATCH(Employee_Data!H42,MinimumWages!$A$1:$R$1,0)-4),0),0)),0) -> 0 | O42: 0 | P42: 0 | Q42: 0 | R42: 0 | S42: 0 | T42: 0 | U42: 0 | V42: 0 | W42: 0 | X42: 0 | Y42: 0 | Z42: 0 | AA42: 0 | AB42: 0 | AC42: 0 | AD42: 0 | AE42: 0 | AF42: -
A43: 42 | L43: =IFERROR(VLOOKUP(G43,MinimumWages!$A$1:$R$60,MATCH(Employee_Data!H43,MinimumWages!$A$1:$R$1,0),0),0) -> 0 | M43: 0 | N43: =ROUND(MAX(ROUNDUP(IF(K43>30000,K43/2,L43/3*2),-2),IFERROR(VLOOKUP(G43,MinimumWages!$A$1:$R$60,(MATCH(Employee_Data!H43,MinimumWages!$A$1:$R$1,0)-4),0),0)),0) -> 0 | O43: 0 | P43: 0 | Q43: 0 | R43: 0 | S43: 0 | T43: 0 | U43: 0 | V43: 0 | W43: 0 | X43: 0 | Y43: 0 | Z43: 0 | AA43: 0 | AB43: 0 | AC43: 0 | AD43: 0 | AE43: 0 | AF43: -
A44: 43 | L44: =IFERROR(VLOOKUP(G44,MinimumWages!$A$1:$R$60,MATCH(Employee_Data!H44,MinimumWages!$A$1:$R$1,0),0),0) -> 0 | M44: 0 | N44: =ROUND(MAX(ROUNDUP(IF(K44>30000,K44/2,L44/3*2),-2),IFERROR(VLOOKUP(G44,MinimumWages!$A$1:$R$60,(MATCH(Employee_Data!H44,MinimumWages!$A$1:$R$1,0)-4),0),0)),0) -> 0 | O44: 0 | P44: 0 | Q44: 0 | R44: 0 | S44: 0 | T44: 0 | U44: 0 | V44: 0 | W44: 0 | X44: 0 | Y44: 0 | Z44: 0 | AA44: 0 | AB44: 0 | AC44: 0 | AD44: 0 | AE44: 0 | AF44: -
A45: 44 | L45: =IFERROR(VLOOKUP(G45,MinimumWages!$A$1:$R$60,MATCH(Employee_Data!H45,MinimumWages!$A$1:$R$1,0),0),0) -> 0 | M45: 0 | N45: =ROUND(MAX(ROUNDUP(IF(K45>30000,K45/2,L45/3*2),-2),IFERROR(VLOOKUP(G45,MinimumWages!$A$1:$R$60,(MATCH(Employee_Data!H45,MinimumWages!$A$1:$R$1,0)-4),0),0)),0) -> 0 | O45: 0 | P45: 0 | Q45: 0 | R45: 0 | S45: 0 | T45: 0 | U45: 0 | V45: 0 | W45: 0 | X45: 0 | Y45: 0 | Z45: 0 | AA45: 0 | AB45: 0 | AC45: 0 | AD45: 0 | AE45: 0 | AF45: -
A46: 45 | L46: =IFERROR(VLOOKUP(G46,MinimumWages!$A$1:$R$60,MATCH(Employee_Data!H46,MinimumWages!$A$1:$R$1,0),0),0) -> 0 | M46: 0 | N46: =ROUND(MAX(ROUNDUP(IF(K46>30000,K46/2,L46/3*2),-2),IFERROR(VLOOKUP(G46,MinimumWages!$A$1:$R$60,(MATCH(Employee_Data!H46,MinimumWages!$A$1:$R$1,0)-4),0),0)),0) -> 0 | O46: 0 | P46: 0 | Q46: 0 | R46: 0 | S46: 0 | T46: 0 | U46: 0 | V46: 0 | W46: 0 | X46: 0 | Y46: 0 | Z46: 0 | AA46: 0 | AB46: 0 | AC46: 0 | AD46: 0 | AE46: 0 | AF46: -
A47: 46 | L47: =IFERROR(VLOOKUP(G47,MinimumWages!$A$1:$R$60,MATCH(Employee_Data!H47,MinimumWages!$A$1:$R$1,0),0),0) -> 0 | M47: 0 | N47: =ROUND(MAX(ROUNDUP(IF(K47>30000,K47/2,L47/3*2),-2),IFERROR(VLOOKUP(G47,MinimumWages!$A$1:$R$60,(MATCH(Employee_Data!H47,MinimumWages!$A$1:$R$1,0)-4),0),0)),0) -> 0 | O47: 0 | P47: 0 | Q47: 0 | R47: 0 | S47: 0 | T47: 0 | U47: 0 | V47: 0 | W47: 0 | X47: 0 | Y47: 0 | Z47: 0 | AA47: 0 | AB47: 0 | AC47: 0 | AD47: 0 | AE47: 0 | AF47: -
A48: 47 | L48: =IFERROR(VLOOKUP(G48,MinimumWages!$A$1:$R$60,MATCH(Employee_Data!H48,MinimumWages!$A$1:$R$1,0),0),0) -> 0 | M48: 0 | N48: =ROUND(MAX(ROUNDUP(IF(K48>30000,K48/2,L48/3*2),-2),IFERROR(VLOOKUP(G48,MinimumWages!$A$1:$R$60,(MATCH(Employee_Data!H48,MinimumWages!$A$1:$R$1,0)-4),0),0)),0) -> 0 | O48: 0 | P48: 0 | Q48: 0 | R48: 0 | S48: 0 | T48: 0 | U48: 0 | V48: 0 | W48: 0 | X48: 0 | Y48: 0 | Z48: 0 | AA48: 0 | AB48: 0 | AC48: 0 | AD48: 0 | AE48: 0 | AF48: -
A49: 48 | L49: =IFERROR(VLOOKUP(G49,MinimumWages!$A$1:$R$60,MATCH(Employee_Data!H49,MinimumWages!$A$1:$R$1,0),0),0) -> 0 | M49: 0 | N49: =ROUND(MAX(ROUNDUP(IF(K49>30000,K49/2,L49/3*2),-2),IFERROR(VLOOKUP(G49,MinimumWages!$A$1:$R$60,(MATCH(Employee_Data!H49,MinimumWages!$A$1:$R$1,0)-4),0),0)),0) -> 0 | O49: 0 | P49: 0 | Q49: 0 | R49: 0 | S49: 0 | T49: 0 | U49: 0 | V49: 0 | W49: 0 | X49: 0 | Y49: 0 | Z49: 0 | AA49: 0 | AB49: 0 | AC49: 0 | AD49: 0 | AE49: 0 | AF49: -
A50: 49 | L50: =IFERROR(VLOOKUP(G50,MinimumWages!$A$1:$R$60,MATCH(Employee_Data!H50,MinimumWages!$A$1:$R$1,0),0),0) -> 0 | M50: 0 | N50: =ROUND(MAX(ROUNDUP(IF(K50>30000,K50/2,L50/3*2),-2),IFERROR(VLOOKUP(G50,MinimumWages!$A$1:$R$60,(MATCH(Employee_Data!H50,MinimumWages!$A$1:$R$1,0)-4),0),0)),0) -> 0 | O50: 0 | P50: 0 | Q50: 0 | R50: 0 | S50: 0 | T50: 0 | U50: 0 | V50: 0 | W50: 0 | X50: 0 | Y50: 0 | Z50: 0 | AA50: 0 | AB50: 0 | AC50: 0 | AD50: 0 | AE50: 0 | AF50: -
A51: 50 | L51: =IFERROR(VLOOKUP(G51,MinimumWages!$A$1:$R$60,MATCH(Employee_Data!H51,MinimumWages!$A$1:$R$1,0),0),0) -> 0 | M51: 0 | N51: =ROUND(MAX(ROUNDUP(IF(K51>30000,K51/2,L51/3*2),-2),IFERROR(VLOOKUP(G51,MinimumWages!$A$1:$R$60,(MATCH(Employee_Data!H51,MinimumWages!$A$1:$R$1,0)-4),0),0)),0) -> 0 | O51: 0 | P51: 0 | Q51: 0 | R51: 0 | S51: 0 | T51: 0 | U51: 0 | V51: 0 | W51: 0 | X51: 0 | Y51: 0 | Z51: 0 | AA51: 0 | AB51: 0 | AC51: 0 | AD51: 0 | AE51: 0 | AF51: -
A52: 51 | L52: =IFERROR(VLOOKUP(G52,MinimumWages!$A$1:$R$60,MATCH(Employee_Data!H52,MinimumWages!$A$1:$R$1,0),0),0) -> 0 | M52: 0 | N52: =ROUND(MAX(ROUNDUP(IF(K52>30000,K52/2,L52/3*2),-2),IFERROR(VLOOKUP(G52,MinimumWages!$A$1:$R$60,(MATCH(Employee_Data!H52,MinimumWages!$A$1:$R$1,0)-4),0),0)),0) -> 0 | O52: 0 | P52: 0 | Q52: 0 | R52: 0 | S52: 0 | T52: 0 | U52: 0 | V52: 0 | W52: 0 | X52: 0 | Y52: 0 | Z52: 0 | AA52: 0 | AB52: 0 | AC52: 0 | AD52: 0 | AE52: 0 | AF52: -
A53: 52 | L53: =IFERROR(VLOOKUP(G53,MinimumWages!$A$1:$R$60,MATCH(Employee_Data!H53,MinimumWages!$A$1:$R$1,0),0),0) -> 0 | M53: 0 | N53: =ROUND(MAX(ROUNDUP(IF(K53>30000,K53/2,L53/3*2),-2),IFERROR(VLOOKUP(G53,MinimumWages!$A$1:$R$60,(MATCH(Employee_Data!H53,MinimumWages!$A$1:$R$1,0)-4),0),0)),0) -> 0 | O53: 0 | P53: 0 | Q53: 0 | R53: 0 | S53: 0 | T53: 0 | U53: 0 | V53: 0 | W53: 0 | X53: 0 | Y53: 0 | Z53: 0 | AA53: 0 | AB53: 0 | AC53: 0 | AD53: 0 | AE53: 0 | AF53: -
A54: 53 | L54: =IFERROR(VLOOKUP(G54,MinimumWages!$A$1:$R$60,MATCH(Employee_Data!H54,MinimumWages!$A$1:$R$1,0),0),0) -> 0 | M54: 0 | N54: =ROUND(MAX(ROUNDUP(IF(K54>30000,K54/2,L54/3*2),-2),IFERROR(VLOOKUP(G54,MinimumWages!$A$1:$R$60,(MATCH(Employee_Data!H54,MinimumWages!$A$1:$R$1,0)-4),0),0)),0) -> 0 | O54: 0 | P54: 0 | Q54: 0 | R54: 0 | S54: 0 | T54: 0 | U54: 0 | V54: 0 | W54: 0 | X54: 0 | Y54: 0 | Z54: 0 | AA54: 0 | AB54: 0 | AC54: 0 | AD54: 0 | AE54: 0 | AF54: -
A55: 54 | L55: =IFERROR(VLOOKUP(G55,MinimumWages!$A$1:$R$60,MATCH(Employee_Data!H55,MinimumWages!$A$1:$R$1,0),0),0) -> 0 | M55: 0 | N55: =ROUND(MAX(ROUNDUP(IF(K55>30000,K55/2,L55/3*2),-2),IFERROR(VLOOKUP(G55,MinimumWages!$A$1:$R$60,(MATCH(Employee_Data!H55,MinimumWages!$A$1:$R$1,0)-4),0),0)),0) -> 0 | O55: 0 | P55: 0 | Q55: 0 | R55: 0 | S55: 0 | T55: 0 | U55: 0 | V55: 0 | W55: 0 | X55: 0 | Y55: 0 | Z55: 0 | AA55: 0 | AB55: 0 | AC55: 0 | AD55: 0 | AE55: 0 | AF55: -
A56: 55 | L56: =IFERROR(VLOOKUP(G56,MinimumWages!$A$1:$R$60,MATCH(Employee_Data!H56,MinimumWages!$A$1:$R$1,0),0),0) -> 0 | M56: 0 | N56: =ROUND(MAX(ROUNDUP(IF(K56>30000,K56/2,L56/3*2),-2),IFERROR(VLOOKUP(G56,MinimumWages!$A$1:$R$60,(MATCH(Employee_Data!H56,MinimumWages!$A$1:$R$1,0)-4),0),0)),0) -> 0 | O56: 0 | P56: 0 | Q56: 0 | R56: 0 | S56: 0 | T56: 0 | U56: 0 | V56: 0 | W56: 0 | X56: 0 | Y56: 0 | Z56: 0 | AA56: 0 | AB56: 0 | AC56: 0 | AD56: 0 | AE56: 0 | AF56: -
A57: 56 | L57: =IFERROR(VLOOKUP(G57,MinimumWages!$A$1:$R$60,MATCH(Employee_Data!H57,MinimumWages!$A$1:$R$1,0),0),0) -> 0 | M57: 0 | N57: =ROUND(MAX(ROUNDUP(IF(K57>30000,K57/2,L57/3*2),-2),IFERROR(VLOOKUP(G57,MinimumWages!$A$1:$R$60,(MATCH(Employee_Data!H57,MinimumWages!$A$1:$R$1,0)-4),0),0)),0) -> 0 | O57: 0 | P57: 0 | Q57: 0 | R57: 0 | S57: 0 | T57: 0 | U57: 0 | V57: 0 | W57: 0 | X57: 0 | Y57: 0 | Z57: 0 | AA57: 0 | AB57: 0 | AC57: 0 | AD57: 0 | AE57: 0 | AF57: -
A58: 57 | L58: =IFERROR(VLOOKUP(G58,MinimumWages!$A$1:$R$60,MATCH(Employee_Data!H58,MinimumWages!$A$1:$R$1,0),0),0) -> 0 | M58: 0 | N58: =ROUND(MAX(ROUNDUP(IF(K58>30000,K58/2,L58/3*2),-2),IFERROR(VLOOKUP(G58,MinimumWages!$A$1:$R$60,(MATCH(Employee_Data!H58,MinimumWages!$A$1:$R$1,0)-4),0),0)),0) -> 0 | O58: 0 | P58: 0 | Q58: 0 | R58: 0 | S58: 0 | T58: 0 | U58: 0 | V58: 0 | W58: 0 | X58: 0 | Y58: 0 | Z58: 0 | AA58: 0 | AB58: 0 | AC58: 0 | AD58: 0 | AE58: 0 | AF58: -
A59: 58 | L59: =IFERROR(VLOOKUP(G59,MinimumWages!$A$1:$R$60,MATCH(Employee_Data!H59,MinimumWages!$A$1:$R$1,0),0),0) -> 0 | M59: 0 | N59: =ROUND(MAX(ROUNDUP(IF(K59>30000,K59/2,L59/3*2),-2),IFERROR(VLOOKUP(G59,MinimumWages!$A$1:$R$60,(MATCH(Employee_Data!H59,MinimumWages!$A$1:$R$1,0)-4),0),0)),0) -> 0 | O59: 0 | P59: 0 | Q59: 0 | R59: 0 | S59: 0 | T59: 0 | U59: 0 | V59: 0 | W59: 0 | X59: 0 | Y59: 0 | Z59: 0 | AA59: 0 | AB59: 0 | AC59: 0 | AD59: 0 | AE59: 0 | AF59: -
A60: 59 | L60: =IFERROR(VLOOKUP(G60,MinimumWages!$A$1:$R$60,MATCH(Employee_Data!H60,MinimumWages!$A$1:$R$1,0),0),0) -> 0 | M60: 0 | N60: =ROUND(MAX(ROUNDUP(IF(K60>30000,K60/2,L60/3*2),-2),IFERROR(VLOOKUP(G60,MinimumWages!$A$1:$R$60,(MATCH(Employee_Data!H60,MinimumWages!$A$1:$R$1,0)-4),0),0)),0) -> 0 | O60: 0 | P60: 0 | Q60: 0 | R60: 0 | S60: 0 | T60: 0 | U60: 0 | V60: 0 | W60: 0 | X60: 0 | Y60: 0 | Z60: 0 | AA60: 0 | AB60: 0 | AC60: 0 | AD60: 0 | AE60: 0 | AF60: -
A61: 60 | L61: =IFERROR(VLOOKUP(G61,MinimumWages!$A$1:$R$60,MATCH(Employee_Data!H61,MinimumWages!$A$1:$R$1,0),0),0) -> 0 | M61: 0 | N61: =ROUND(MAX(ROUNDUP(IF(K61>30000,K61/2,L61/3*2),-2),IFERROR(VLOOKUP(G61,MinimumWages!$A$1:$R$60,(MATCH(Employee_Data!H61,MinimumWages!$A$1:$R$1,0)-4),0),0)),0) -> 0 | O61: 0 | P61: 0 | Q61: 0 | R61: 0 | S61: 0 | T61: 0 | U61: 0 | V61: 0 | W61: 0 | X61: 0 | Y61: 0 | Z61: 0 | AA61: 0 | AB61: 0 | AC61: 0 | AD61: 0 | AE61: 0 | AF61: -
A62: 61 | L62: =IFERROR(VLOOKUP(G62,MinimumWages!$A$1:$R$60,MATCH(Employee_Data!H62,MinimumWages!$A$1:$R$1,0),0),0) -> 0 | M62: 0 | N62: =ROUND(MAX(ROUNDUP(IF(K62>30000,K62/2,L62/3*2),-2),IFERROR(VLOOKUP(G62,MinimumWages!$A$1:$R$60,(MATCH(Employee_Data!H62,MinimumWages!$A$1:$R$1,0)-4),0),0)),0) -> 0 | O62: 0 | P62: 0 | Q62: 0 | R62: 0 | S62: 0 | T62: 0 | U62: 0 | V62: 0 | W62: 0 | X62: 0 | Y62: 0 | Z62: 0 | AA62: 0 | AB62: 0 | AC62: 0 | AD62: 0 | AE62: 0 | AF62: -
A63: 62 | L63: =IFERROR(VLOOKUP(G63,MinimumWages!$A$1:$R$60,MATCH(Employee_Data!H63,MinimumWages!$A$1:$R$1,0),0),0) -> 0 | M63: 0 | N63: =ROUND(MAX(ROUNDUP(IF(K63>30000,K63/2,L63/3*2),-2),IFERROR(VLOOKUP(G63,MinimumWages!$A$1:$R$60,(MATCH(Employee_Data!H63,MinimumWages!$A$1:$R$1,0)-4),0),0)),0) -> 0 | O63: 0 | P63: 0 | Q63: 0 | R63: 0 | S63: 0 | T63: 0 | U63: 0 | V63: 0 | W63: 0 | X63: 0 | Y63: 0 | Z63: 0 | AA63: 0 | AB63: 0 | AC63: 0 | AD63: 0 | AE63: 0 | AF63: -
A64: 63 | L64: =IFERROR(VLOOKUP(G64,MinimumWages!$A$1:$R$60,MATCH(Employee_Data!H64,MinimumWages!$A$1:$R$1,0),0),0) -> 0 | M64: 0 | N64: =ROUND(MAX(ROUNDUP(IF(K64>30000,K64/2,L64/3*2),-2),IFERROR(VLOOKUP(G64,MinimumWages!$A$1:$R$60,(MATCH(Employee_Data!H64,MinimumWages!$A$1:$R$1,0)-4),0),0)),0) -> 0 | O64: 0 | P64: 0 | Q64: 0 | R64: 0 | S64: 0 | T64: 0 | U64: 0 | V64: 0 | W64: 0 | X64: 0 | Y64: 0 | Z64: 0 | AA64: 0 | AB64: 0 | AC64: 0 | AD64: 0 | AE64: 0 | AF64: -
A65: 64 | L65: =IFERROR(VLOOKUP(G65,MinimumWages!$A$1:$R$60,MATCH(Employee_Data!H65,MinimumWages!$A$1:$R$1,0),0),0) -> 0 | M65: 0 | N65: =ROUND(MAX(ROUNDUP(IF(K65>30000,K65/2,L65/3*2),-2),IFERROR(VLOOKUP(G65,MinimumWages!$A$1:$R$60,(MATCH(Employee_Data!H65,MinimumWages!$A$1:$R$1,0)-4),0),0)),0) -> 0 | O65: 0 | P65: 0 | Q65: 0 | R65: 0 | S65: 0 | T65: 0 | U65: 0 | V65: 0 | W65: 0 | X65: 0 | Y65: 0 | Z65: 0 | AA65: 0 | AB65: 0 | AC65: 0 | AD65: 0 | AE65: 0 | AF65: -
A66: 65 | L66: =IFERROR(VLOOKUP(G66,MinimumWages!$A$1:$R$60,MATCH(Employee_Data!H66,MinimumWages!$A$1:$R$1,0),0),0) -> 0 | M66: 0 | N66: =ROUND(MAX(ROUNDUP(IF(K66>30000,K66/2,L66/3*2),-2),IFERROR(VLOOKUP(G66,MinimumWages!$A$1:$R$60,(MATCH(Employee_Data!H66,MinimumWages!$A$1:$R$1,0)-4),0),0)),0) -> 0 | O66: 0 | P66: 0 | Q66: 0 | R66: 0 | S66: 0 | T66: 0 | U66: 0 | V66: 0 | W66: 0 | X66: 0 | Y66: 0 | Z66: 0 | AA66: 0 | AB66: 0 | AC66: 0 | AD66: 0 | AE66: 0 | AF66: -
A67: =ROW()-1 -> 66 | L67: =IFERROR(VLOOKUP(G67,MinimumWages!$A$1:$R$60,MATCH(Employee_Data!H67,MinimumWages!$A$1:$R$1,0),0),0) -> 0 | M67: 0 | N67: =ROUND(MAX(ROUNDUP(IF(K67>30000,K67/2,L67/3*2),-2),IFERROR(VLOOKUP(G67,MinimumWages!$A$1:$R$60,(MATCH(Employee_Data!H67,MinimumWages!$A$1:$R$1,0)-4),0),0)),0) -> 0 | O67: 0 | P67: 0 | Q67: 0 | R67: 0 | S67: 0 | T67: 0 | U67: 0 | V67: 0 | W67: 0 | X67: 0 | Y67: 0 | Z67: 0 | AA67: 0 | AB67: 0 | AC67: 0 | AD67: =ROUND(AC67*12,0) -> 0 | AE67: 0 | AF67: -
A68: 67 | L68: =IFERROR(VLOOKUP(G68,MinimumWages!$A$1:$R$60,MATCH(Employee_Data!H68,MinimumWages!$A$1:$R$1,0),0),0) -> 0 | M68: 0 | N68: =ROUND(MAX(ROUNDUP(IF(K68>30000,K68/2,L68/3*2),-2),IFERROR(VLOOKUP(G68,MinimumWages!$A$1:$R$60,(MATCH(Employee_Data!H68,MinimumWages!$A$1:$R$1,0)-4),0),0)),0) -> 0 | O68: 0 | P68: 0 | Q68: 0 | R68: 0 | S68: 0 | T68: 0 | U68: 0 | V68: 0 | W68: 0 | X68: 0 | Y68: 0 | Z68: 0 | AA68: 0 | AB68: 0 | AC68: 0 | AD68: 0 | AE68: 0 | AF68: -
A69: 68 | L69: =IFERROR(VLOOKUP(G69,MinimumWages!$A$1:$R$60,MATCH(Employee_Data!H69,MinimumWages!$A$1:$R$1,0),0),0) -> 0 | M69: 0 | N69: =ROUND(MAX(ROUNDUP(IF(K69>30000,K69/2,L69/3*2),-2),IFERROR(VLOOKUP(G69,MinimumWages!$A$1:$R$60,(MATCH(Employee_Data!H69,MinimumWages!$A$1:$R$1,0)-4),0),0)),0) -> 0 | O69: 0 | P69: 0 | Q69: 0 | R69: 0 | S69: 0 | T69: 0 | U69: 0 | V69: 0 | W69: 0 | X69: 0 | Y69: 0 | Z69: 0 | AA69: 0 | AB69: 0 | AC69: 0 | AD69: 0 | AE69: 0 | AF69: -
A70: 69 | L70: =IFERROR(VLOOKUP(G70,MinimumWages!$A$1:$R$60,MATCH(Employee_Data!H70,MinimumWages!$A$1:$R$1,0),0),0) -> 0 | M70: 0 | N70: =ROUND(MAX(ROUNDUP(IF(K70>30000,K70/2,L70/3*2),-2),IFERROR(VLOOKUP(G70,MinimumWages!$A$1:$R$60,(MATCH(Employee_Data!H70,MinimumWages!$A$1:$R$1,0)-4),0),0)),0) -> 0 | O70: 0 | P70: 0 | Q70: 0 | R70: 0 | S70: 0 | T70: 0 | U70: 0 | V70: 0 | W70: 0 | X70: 0 | Y70: 0 | Z70: 0 | AA70: 0 | AB70: 0 | AC70: 0 | AD70: 0 | AE70: 0 | AF70: -
A71: 70 | L71: =IFERROR(VLOOKUP(G71,MinimumWages!$A$1:$R$60,MATCH(Employee_Data!H71,MinimumWages!$A$1:$R$1,0),0),0) -> 0 | M71: 0 | N71: =ROUND(MAX(ROUNDUP(IF(K71>30000,K71/2,L71/3*2),-2),IFERROR(VLOOKUP(G71,MinimumWages!$A$1:$R$60,(MATCH(Employee_Data!H71,MinimumWages!$A$1:$R$1,0)-4),0),0)),0) -> 0 | O71: 0 | P71: 0 | Q71: 0 | R71: 0 | S71: 0 | T71: 0 | U71: 0 | V71: 0 | W71: 0 | X71: 0 | Y71: 0 | Z71: 0 | AA71: 0 | AB71: 0 | AC71: 0 | AD71: 0 | AE71: 0 | AF71: -
A72: 71 | L72: =IFERROR(VLOOKUP(G72,MinimumWages!$A$1:$R$60,MATCH(Employee_Data!H72,MinimumWages!$A$1:$R$1,0),0),0) -> 0 | M72: 0 | N72: =ROUND(MAX(ROUNDUP(IF(K72>30000,K72/2,L72/3*2),-2),IFERROR(VLOOKUP(G72,MinimumWages!$A$1:$R$60,(MATCH(Employee_Data!H72,MinimumWages!$A$1:$R$1,0)-4),0),0)),0) -> 0 | O72: 0 | P72: 0 | Q72: 0 | R72: 0 | S72: 0 | T72: 0 | U72: 0 | V72: 0 | W72: 0 | X72: 0 | Y72: 0 | Z72: 0 | AA72: 0 | AB72: 0 | AC72: 0 | AD72: 0 | AE72: 0 | AF72: -
A73: 72 | L73: =IFERROR(VLOOKUP(G73,MinimumWages!$A$1:$R$60,MATCH(Employee_Data!H73,MinimumWages!$A$1:$R$1,0),0),0) -> 0 | M73: 0 | N73: =ROUND(MAX(ROUNDUP(IF(K73>30000,K73/2,L73/3*2),-2),IFERROR(VLOOKUP(G73,MinimumWages!$A$1:$R$60,(MATCH(Employee_Data!H73,MinimumWages!$A$1:$R$1,0)-4),0),0)),0) -> 0 | O73: 0 | P73: 0 | Q73: 0 | R73: 0 | S73: 0 | T73: 0 | U73: 0 | V73: 0 | W73: 0 | X73: 0 | Y73: 0 | Z73: 0 | AA73: 0 | AB73: 0 | AC73: 0 | AD73: 0 | AE73: 0 | AF73: -
A74: 73 | L74: =IFERROR(VLOOKUP(G74,MinimumWages!$A$1:$R$60,MATCH(Employee_Data!H74,MinimumWages!$A$1:$R$1,0),0),0) -> 0 | M74: 0 | N74: =ROUND(MAX(ROUNDUP(IF(K74>30000,K74/2,L74/3*2),-2),IFERROR(VLOOKUP(G74,MinimumWages!$A$1:$R$60,(MATCH(Employee_Data!H74,MinimumWages!$A$1:$R$1,0)-4),0),0)),0) -> 0 | O74: 0 | P74: 0 | Q74: 0 | R74: 0 | S74: 0 | T74: 0 | U74: 0 | V74: 0 | W74: 0 | X74: 0 | Y74: 0 | Z74: 0 | AA74: 0 | AB74: 0 | AC74: 0 | AD74: 0 | AE74: 0 | AF74: -
A75: 74 | L75: =IFERROR(VLOOKUP(G75,MinimumWages!$A$1:$R$60,MATCH(Employee_Data!H75,MinimumWages!$A$1:$R$1,0),0),0) -> 0 | M75: 0 | N75: =ROUND(MAX(ROUNDUP(IF(K75>30000,K75/2,L75/3*2),-2),IFERROR(VLOOKUP(G75,MinimumWages!$A$1:$R$60,(MATCH(Employee_Data!H75,MinimumWages!$A$1:$R$1,0)-4),0),0)),0) -> 0 | O75: 0 | P75: 0 | Q75: 0 | R75: 0 | S75: 0 | T75: 0 | U75: 0 | V75: 0 | W75: 0 | X75: 0 | Y75: 0 | Z75: 0 | AA75: 0 | AB75: 0 | AC75: 0 | AD75: 0 | AE75: 0 | AF75: -
A76: 75 | L76: =IFERROR(VLOOKUP(G76,MinimumWages!$A$1:$R$60,MATCH(Employee_Data!H76,MinimumWages!$A$1:$R$1,0),0),0) -> 0 | M76: 0 | N76: =ROUND(MAX(ROUNDUP(IF(K76>30000,K76/2,L76/3*2),-2),IFERROR(VLOOKUP(G76,MinimumWages!$A$1:$R$60,(MATCH(Employee_Data!H76,MinimumWages!$A$1:$R$1,0)-4),0),0)),0) -> 0 | O76: 0 | P76: 0 | Q76: 0 | R76: 0 | S76: 0 | T76: 0 | U76: 0 | V76: 0 | W76: 0 | X76: 0 | Y76: 0 | Z76: 0 | AA76: 0 | AB76: 0 | AC76: 0 | AD76: 0 | AE76: 0 | AF76: -
A77: 76 | L77: =IFERROR(VLOOKUP(G77,MinimumWages!$A$1:$R$60,MATCH(Employee_Data!H77,MinimumWages!$A$1:$R$1,0),0),0) -> 0 | M77: 0 | N77: =ROUND(MAX(ROUNDUP(IF(K77>30000,K77/2,L77/3*2),-2),IFERROR(VLOOKUP(G77,MinimumWages!$A$1:$R$60,(MATCH(Employee_Data!H77,MinimumWages!$A$1:$R$1,0)-4),0),0)),0) -> 0 | O77: 0 | P77: 0 | Q77: 0 | R77: 0 | S77: 0 | T77: 0 | U77: 0 | V77: 0 | W77: 0 | X77: 0 | Y77: 0 | Z77: 0 | AA77: 0 | AB77: 0 | AC77: 0 | AD77: 0 | AE77: 0 | AF77: -
A78: 77 | L78: =IFERROR(VLOOKUP(G78,MinimumWages!$A$1:$R$60,MATCH(Employee_Data!H78,MinimumWages!$A$1:$R$1,0),0),0) -> 0 | M78: 0 | N78: =ROUND(MAX(ROUNDUP(IF(K78>30000,K78/2,L78/3*2),-2),IFERROR(VLOOKUP(G78,MinimumWages!$A$1:$R$60,(MATCH(Employee_Data!H78,MinimumWages!$A$1:$R$1,0)-4),0),0)),0) -> 0 | O78: 0 | P78: 0 | Q78: 0 | R78: 0 | S78: 0 | T78: 0 | U78: 0 | V78: 0 | W78: 0 | X78: 0 | Y78: 0 | Z78: 0 | AA78: 0 | AB78: 0 | AC78: 0 | AD78: 0 | AE78: 0 | AF78: -
A79: 78 | L79: =IFERROR(VLOOKUP(G79,MinimumWages!$A$1:$R$60,MATCH(Employee_Data!H79,MinimumWages!$A$1:$R$1,0),0),0) -> 0 | M79: 0 | N79: =ROUND(MAX(ROUNDUP(IF(K79>30000,K79/2,L79/3*2),-2),IFERROR(VLOOKUP(G79,MinimumWages!$A$1:$R$60,(MATCH(Employee_Data!H79,MinimumWages!$A$1:$R$1,0)-4),0),0)),0) -> 0 | O79: 0 | P79: 0 | Q79: 0 | R79: 0 | S79: 0 | T79: 0 | U79: 0 | V79: 0 | W79: 0 | X79: 0 | Y79: 0 | Z79: 0 | AA79: 0 | AB79: 0 | AC79: 0 | AD79: 0 | AE79: 0 | AF79: -
A80: 79 | L80: =IFERROR(VLOOKUP(G80,MinimumWages!$A$1:$R$60,MATCH(Employee_Data!H80,MinimumWages!$A$1:$R$1,0),0),0) -> 0 | M80: 0 | N80: =ROUND(MAX(ROUNDUP(IF(K80>30000,K80/2,L80/3*2),-2),IFERROR(VLOOKUP(G80,MinimumWages!$A$1:$R$60,(MATCH(Employee_Data!H80,MinimumWages!$A$1:$R$1,0)-4),0),0)),0) -> 0 | O80: 0 | P80: 0 | Q80: 0 | R80: 0 | S80: 0 | T80: 0 | U80: 0 | V80: 0 | W80: 0 | X80: 0 | Y80: 0 | Z80: 0 | AA80: 0 | AB80: 0 | AC80: 0 | AD80: 0 | AE80: 0 | AF80: -
A81: 80 | L81: =IFERROR(VLOOKUP(G81,MinimumWages!$A$1:$R$60,MATCH(Employee_Data!H81,MinimumWages!$A$1:$R$1,0),0),0) -> 0 | M81: 0 | N81: =ROUND(MAX(ROUNDUP(IF(K81>30000,K81/2,L81/3*2),-2),IFERROR(VLOOKUP(G81,MinimumWages!$A$1:$R$60,(MATCH(Employee_Data!H81,MinimumWages!$A$1:$R$1,0)-4),0),0)),0) -> 0 | O81: 0 | P81: 0 | Q81: 0 | R81: 0 | S81: 0 | T81: 0 | U81: 0 | V81: 0 | W81: 0 | X81: 0 | Y81: 0 | Z81: 0 | AA81: 0 | AB81: 0 | AC81: 0 | AD81: 0 | AE81: 0 | AF81: -
A82: 81 | L82: =IFERROR(VLOOKUP(G82,MinimumWages!$A$1:$R$60,MATCH(Employee_Data!H82,MinimumWages!$A$1:$R$1,0),0),0) -> 0 | M82: 0 | N82: =ROUND(MAX(ROUNDUP(IF(K82>30000,K82/2,L82/3*2),-2),IFERROR(VLOOKUP(G82,MinimumWages!$A$1:$R$60,(MATCH(Employee_Data!H82,MinimumWages!$A$1:$R$1,0)-4),0),0)),0) -> 0 | O82: 0 | P82: 0 | Q82: 0 | R82: 0 | S82: 0 | T82: 0 | U82: 0 | V82: 0 | W82: 0 | X82: 0 | Y82: 0 | Z82: 0 | AA82: 0 | AB82: 0 | AC82: 0 | AD82: 0 | AE82: 0 | AF82: -
A83: 82 | L83: =IFERROR(VLOOKUP(G83,MinimumWages!$A$1:$R$60,MATCH(Employee_Data!H83,MinimumWages!$A$1:$R$1,0),0),0) -> 0 | M83: 0 | N83: =ROUND(MAX(ROUNDUP(IF(K83>30000,K83/2,L83/3*2),-2),IFERROR(VLOOKUP(G83,MinimumWages!$A$1:$R$60,(MATCH(Employee_Data!H83,MinimumWages!$A$1:$R$1,0)-4),0),0)),0) -> 0 | O83: 0 | P83: 0 | Q83: 0 | R83: 0 | S83: 0 | T83: 0 | U83: 0 | V83: 0 | W83: 0 | X83: 0 | Y83: 0 | Z83: 0 | AA83: 0 | AB83: 0 | AC83: 0 | AD83: 0 | AE83: 0 | AF83: -
A84: 83 | L84: =IFERROR(VLOOKUP(G84,MinimumWages!$A$1:$R$60,MATCH(Employee_Data!H84,MinimumWages!$A$1:$R$1,0),0),0) -> 0 | M84: 0 | N84: =ROUND(MAX(ROUNDUP(IF(K84>30000,K84/2,L84/3*2),-2),IFERROR(VLOOKUP(G84,MinimumWages!$A$1:$R$60,(MATCH(Employee_Data!H84,MinimumWages!$A$1:$R$1,0)-4),0),0)),0) -> 0 | O84: 0 | P84: 0 | Q84: 0 | R84: 0 | S84: 0 | T84: 0 | U84: 0 | V84: 0 | W84: 0 | X84: 0 | Y84: 0 | Z84: 0 | AA84: 0 | AB84: 0 | AC84: 0 | AD84: 0 | AE84: 0 | AF84: -
A85: 84 | L85: =IFERROR(VLOOKUP(G85,MinimumWages!$A$1:$R$60,MATCH(Employee_Data!H85,MinimumWages!$A$1:$R$1,0),0),0) -> 0 | M85: 0 | N85: =ROUND(MAX(ROUNDUP(IF(K85>30000,K85/2,L85/3*2),-2),IFERROR(VLOOKUP(G85,MinimumWages!$A$1:$R$60,(MATCH(Employee_Data!H85,MinimumWages!$A$1:$R$1,0)-4),0),0)),0) -> 0 | O85: 0 | P85: 0 | Q85: 0 | R85: 0 | S85: 0 | T85: 0 | U85: 0 | V85: 0 | W85: 0 | X85: 0 | Y85: 0 | Z85: 0 | AA85: 0 | AB85: 0 | AC85: 0 | AD85: 0 | AE85: 0 | AF85: -
A86: 85 | L86: =IFERROR(VLOOKUP(G86,MinimumWages!$A$1:$R$60,MATCH(Employee_Data!H86,MinimumWages!$A$1:$R$1,0),0),0) -> 0 | M86: 0 | N86: =ROUND(MAX(ROUNDUP(IF(K86>30000,K86/2,L86/3*2),-2),IFERROR(VLOOKUP(G86,MinimumWages!$A$1:$R$60,(MATCH(Employee_Data!H86,MinimumWages!$A$1:$R$1,0)-4),0),0)),0) -> 0 | O86: 0 | P86: 0 | Q86: 0 | R86: 0 | S86: 0 | T86: 0 | U86: 0 | V86: 0 | W86: 0 | X86: 0 | Y86: 0 | Z86: 0 | AA86: 0 | AB86: 0 | AC86: 0 | AD86: 0 | AE86: 0 | AF86: -
A87: 86 | L87: =IFERROR(VLOOKUP(G87,MinimumWages!$A$1:$R$60,MATCH(Employee_Data!H87,MinimumWages!$A$1:$R$1,0),0),0) -> 0 | M87: 0 | N87: =ROUND(MAX(ROUNDUP(IF(K87>30000,K87/2,L87/3*2),-2),IFERROR(VLOOKUP(G87,MinimumWages!$A$1:$R$60,(MATCH(Employee_Data!H87,MinimumWages!$A$1:$R$1,0)-4),0),0)),0) -> 0 | O87: 0 | P87: 0 | Q87: 0 | R87: 0 | S87: 0 | T87: 0 | U87: 0 | V87: 0 | W87: 0 | X87: 0 | Y87: 0 | Z87: 0 | AA87: 0 | AB87: 0 | AC87: 0 | AD87: 0 | AE87: 0 | AF87: -
A88: 87 | L88: =IFERROR(VLOOKUP(G88,MinimumWages!$A$1:$R$60,MATCH(Employee_Data!H88,MinimumWages!$A$1:$R$1,0),0),0) -> 0 | M88: 0 | N88: =ROUND(MAX(ROUNDUP(IF(K88>30000,K88/2,L88/3*2),-2),IFERROR(VLOOKUP(G88,MinimumWages!$A$1:$R$60,(MATCH(Employee_Data!H88,MinimumWages!$A$1:$R$1,0)-4),0),0)),0) -> 0 | O88: 0 | P88: 0 | Q88: 0 | R88: 0 | S88: 0 | T88: 0 | U88: 0 | V88: 0 | W88: 0 | X88: 0 | Y88: 0 | Z88: 0 | AA88: 0 | AB88: 0 | AC88: 0 | AD88: 0 | AE88: 0 | AF88: -
A89: 88 | L89: =IFERROR(VLOOKUP(G89,MinimumWages!$A$1:$R$60,MATCH(Employee_Data!H89,MinimumWages!$A$1:$R$1,0),0),0) -> 0 | M89: 0 | N89: =ROUND(MAX(ROUNDUP(IF(K89>30000,K89/2,L89/3*2),-2),IFERROR(VLOOKUP(G89,MinimumWages!$A$1:$R$60,(MATCH(Employee_Data!H89,MinimumWages!$A$1:$R$1,0)-4),0),0)),0) -> 0 | O89: 0 | P89: 0 | Q89: 0 | R89: 0 | S89: 0 | T89: 0 | U89: 0 | V89: 0 | W89: 0 | X89: 0 | Y89: 0 | Z89: 0 | AA89: 0 | AB89: 0 | AC89: 0 | AD89: 0 | AE89: 0 | AF89: -
A90: 89 | L90: =IFERROR(VLOOKUP(G90,MinimumWages!$A$1:$R$60,MATCH(Employee_Data!H90,MinimumWages!$A$1:$R$1,0),0),0) -> 0 | M90: 0 | N90: =ROUND(MAX(ROUNDUP(IF(K90>30000,K90/2,L90/3*2),-2),IFERROR(VLOOKUP(G90,MinimumWages!$A$1:$R$60,(MATCH(Employee_Data!H90,MinimumWages!$A$1:$R$1,0)-4),0),0)),0) -> 0 | O90: 0 | P90: 0 | Q90: 0 | R90: 0 | S90: 0 | T90: 0 | U90: 0 | V90: 0 | W90: 0 | X90: 0 | Y90: 0 | Z90: 0 | AA90: 0 | AB90: 0 | AC90: 0 | AD90: 0 | AE90: 0 | AF90: -
A91: 90 | L91: =IFERROR(VLOOKUP(G91,MinimumWages!$A$1:$R$60,MATCH(Employee_Data!H91,MinimumWages!$A$1:$R$1,0),0),0) -> 0 | M91: 0 | N91: =ROUND(MAX(ROUNDUP(IF(K91>30000,K91/2,L91/3*2),-2),IFERROR(VLOOKUP(G91,MinimumWages!$A$1:$R$60,(MATCH(Employee_Data!H91,MinimumWages!$A$1:$R$1,0)-4),0),0)),0) -> 0 | O91: 0 | P91: 0 | Q91: 0 | R91: 0 | S91: 0 | T91: 0 | U91: 0 | V91: 0 | W91: 0 | X91: 0 | Y91: 0 | Z91: 0 | AA91: 0 | AB91: 0 | AC91: 0 | AD91: 0 | AE91: 0 | AF91: -
A92: 91 | L92: =IFERROR(VLOOKUP(G92,MinimumWages!$A$1:$R$60,MATCH(Employee_Data!H92,MinimumWages!$A$1:$R$1,0),0),0) -> 0 | M92: 0 | N92: =ROUND(MAX(ROUNDUP(IF(K92>30000,K92/2,L92/3*2),-2),IFERROR(VLOOKUP(G92,MinimumWages!$A$1:$R$60,(MATCH(Employee_Data!H92,MinimumWages!$A$1:$R$1,0)-4),0),0)),0) -> 0 | O92: 0 | P92: 0 | Q92: 0 | R92: 0 | S92: 0 | T92: 0 | U92: 0 | V92: 0 | W92: 0 | X92: 0 | Y92: 0 | Z92: 0 | AA92: 0 | AB92: 0 | AC92: 0 | AD92: 0 | AE92: 0 | AF92: -
A93: 92 | L93: =IFERROR(VLOOKUP(G93,MinimumWages!$A$1:$R$60,MATCH(Employee_Data!H93,MinimumWages!$A$1:$R$1,0),0),0) -> 0 | M93: 0 | N93: =ROUND(MAX(ROUNDUP(IF(K93>30000,K93/2,L93/3*2),-2),IFERROR(VLOOKUP(G93,MinimumWages!$A$1:$R$60,(MATCH(Employee_Data!H93,MinimumWages!$A$1:$R$1,0)-4),0),0)),0) -> 0 | O93: 0 | P93: 0 | Q93: 0 | R93: 0 | S93: 0 | T93: 0 | U93: 0 | V93: 0 | W93: 0 | X93: 0 | Y93: 0 | Z93: 0 | AA93: 0 | AB93: 0 | AC93: 0 | AD93: 0 | AE93: 0 | AF93: -
A94: 93 | L94: =IFERROR(VLOOKUP(G94,MinimumWages!$A$1:$R$60,MATCH(Employee_Data!H94,MinimumWages!$A$1:$R$1,0),0),0) -> 0 | M94: 0 | N94: =ROUND(MAX(ROUNDUP(IF(K94>30000,K94/2,L94/3*2),-2),IFERROR(VLOOKUP(G94,MinimumWages!$A$1:$R$60,(MATCH(Employee_Data!H94,MinimumWages!$A$1:$R$1,0)-4),0),0)),0) -> 0 | O94: 0 | P94: 0 | Q94: 0 | R94: 0 | S94: 0 | T94: 0 | U94: 0 | V94: 0 | W94: 0 | X94: 0 | Y94: 0 | Z94: 0 | AA94: 0 | AB94: 0 | AC94: 0 | AD94: 0 | AE94: 0 | AF94: -
A95: 94 | L95: =IFERROR(VLOOKUP(G95,MinimumWages!$A$1:$R$60,MATCH(Employee_Data!H95,MinimumWages!$A$1:$R$1,0),0),0) -> 0 | M95: =ROUND(K95*12,0) -> 0 | N95: =ROUND(MAX(ROUNDUP(IF(K95>30000,K95/2,L95/3*2),-2),IFERROR(VLOOKUP(G95,MinimumWages!$A$1:$R$60,(MATCH(Employee_Data!H95,MinimumWages!$A$1:$R$1,0)-4),0),0)),0) -> 0 | O95: =ROUND(IF(K95<30000,N95*5%,N95/2),0) -> 0 | P95: 0 | Q95: 0 | R95: 0 | S95: 0 | T95: 0 | U95: 0 | V95: =SUM(N95:U95) -> 0 | W95: =IF(I95="Yes",ROUND(IF(J95="Limit",MIN((V95-O95),15000),IF(N95>15000,N95,MIN((V95-O95),15000)))*12%,0),0) -> 0 | X95: =IF(V95>21000,0,ROUNDUP(V95*3.75%,0)) -> 0 | Y95: =SUM(V95:X95) -> 0 | Z95: =IF(AND(N95<=21000,K95>0),ROUND(MAX(L95,7000)*8.33%,0),0) -> 0 | AA95: =ROUND(N95/26*15/12,0) -> 0 | AB95: 0 | AC95: =SUM(Y95:AB95) -> 0 | AD95: 0 | AE95: =ROUND((M95-AD95)/12,0) -> 0 | AF95: =IF(AE95<>0,"Un-Matched CTC",IF(COUNTIF(N95:AE95,"<0")>0,"Less CTC","-")) -> -
A96: 95 | L96: =IFERROR(VLOOKUP(G96,MinimumWages!$A$1:$R$60,MATCH(Employee_Data!H96,MinimumWages!$A$1:$R$1,0),0),0) -> 0 | M96: 0 | N96: =ROUND(MAX(ROUNDUP(IF(K96>30000,K96/2,L96/3*2),-2),IFERROR(VLOOKUP(G96,MinimumWages!$A$1:$R$60,(MATCH(Employee_Data!H96,MinimumWages!$A$1:$R$1,0)-4),0),0)),0) -> 0 | O96: 0 | P96: 0 | Q96: 0 | R96: 0 | S96: 0 | T96: 0 | U96: 0 | V96: 0 | W96: 0 | X96: 0 | Y96: 0 | Z96: 0 | AA96: 0 | AB96: 0 | AC96: 0 | AD96: 0 | AE96: 0 | AF96: -
A97: 96 | L97: =IFERROR(VLOOKUP(G97,MinimumWages!$A$1:$R$60,MATCH(Employee_Data!H97,MinimumWages!$A$1:$R$1,0),0),0) -> 0 | M97: 0 | N97: =ROUND(MAX(ROUNDUP(IF(K97>30000,K97/2,L97/3*2),-2),IFERROR(VLOOKUP(G97,MinimumWages!$A$1:$R$60,(MATCH(Employee_Data!H97,MinimumWages!$A$1:$R$1,0)-4),0),0)),0) -> 0 | O97: 0 | P97: 0 | Q97: 0 | R97: 0 | S97: 0 | T97: 0 | U97: 0 | V97: 0 | W97: 0 | X97: 0 | Y97: 0 | Z97: 0 | AA97: 0 | AB97: 0 | AC97: 0 | AD97: 0 | AE97: 0 | AF97: -
A98: 97 | L98: =IFERROR(VLOOKUP(G98,MinimumWages!$A$1:$R$60,MATCH(Employee_Data!H98,MinimumWages!$A$1:$R$1,0),0),0) -> 0 | M98: 0 | N98: =ROUND(MAX(ROUNDUP(IF(K98>30000,K98/2,L98/3*2),-2),IFERROR(VLOOKUP(G98,MinimumWages!$A$1:$R$60,(MATCH(Employee_Data!H98,MinimumWages!$A$1:$R$1,0)-4),0),0)),0) -> 0 | O98: 0 | P98: 0 | Q98: 0 | R98: 0 | S98: 0 | T98: 0 | U98: 0 | V98: 0 | W98: 0 | X98: 0 | Y98: 0 | Z98: 0 | AA98: 0 | AB98: 0 | AC98: 0 | AD98: 0 | AE98: 0 | AF98: -
A99: 98 | L99: =IFERROR(VLOOKUP(G99,MinimumWages!$A$1:$R$60,MATCH(Employee_Data!H99,MinimumWages!$A$1:$R$1,0),0),0) -> 0 | M99: 0 | N99: =ROUND(MAX(ROUNDUP(IF(K99>30000,K99/2,L99/3*2),-2),IFERROR(VLOOKUP(G99,MinimumWages!$A$1:$R$60,(MATCH(Employee_Data!H99,MinimumWages!$A$1:$R$1,0)-4),0),0)),0) -> 0 | O99: 0 | P99: 0 | Q99: 0 | R99: 0 | S99: 0 | T99: 0 | U99: 0 | V99: 0 | W99: 0 | X99: 0 | Y99: 0 | Z99: 0 | AA99: 0 | AB99: 0 | AC99: 0 | AD99: 0 | AE99: 0 | AF99: -
A100: 99 | L100: =IFERROR(VLOOKUP(G100,MinimumWages!$A$1:$R$60,MATCH(Employee_Data!H100,MinimumWages!$A$1:$R$1,0),0),0) -> 0 | M100: 0 | N100: =ROUND(MAX(ROUNDUP(IF(K100>30000,K100/2,L100/3*2),-2),IFERROR(VLOOKUP(G100,MinimumWages!$A$1:$R$60,(MATCH(Employee_Data!H100,MinimumWages!$A$1:$R$1,0)-4),0),0)),0) -> 0 | O100: 0 | P100: 0 | Q100: 0 | R100: 0 | S100: 0 | T100: 0 | U100: 0 | V100: 0 | W100: 0 | X100: 0 | Y100: 0 | Z100: 0 | AA100: 0 | AB100: 0 | AC100: 0 | AD100: 0 | AE100: 0 | AF100: -
A101: 100 | L101: =IFERROR(VLOOKUP(G101,MinimumWages!$A$1:$R$60,MATCH(Employee_Data!H101,MinimumWages!$A$1:$R$1,0),0),0) -> 0 | M101: 0 | N101: =ROUND(MAX(ROUNDUP(IF(K101>30000,K101/2,L101/3*2),-2),IFERROR(VLOOKUP(G101,MinimumWages!$A$1:$R$60,(MATCH(Employee_Data!H101,MinimumWages!$A$1:$R$1,0)-4),0),0)),0) -> 0 | O101: 0 | P101: 0 | Q101: 0 | R101: 0 | S101: 0 | T101: 0 | U101: 0 | V101: 0 | W101: 0 | X101: 0 | Y101: 0 | Z101: 0 | AA101: 0 | AB101: 0 | AC101: 0 | AD101: 0 | AE101: 0 | AF101: -
A102: 101 | L102: =IFERROR(VLOOKUP(G102,MinimumWages!$A$1:$R$60,MATCH(Employee_Data!H102,MinimumWages!$A$1:$R$1,0),0),0) -> 0 | M102: 0 | N102: =ROUND(MAX(ROUNDUP(IF(K102>30000,K102/2,L102/3*2),-2),IFERROR(VLOOKUP(G102,MinimumWages!$A$1:$R$60,(MATCH(Employee_Data!H102,MinimumWages!$A$1:$R$1,0)-4),0),0)),0) -> 0 | O102: 0 | P102: 0 | Q102: 0 | R102: 0 | S102: 0 | T102: 0 | U102: 0 | V102: 0 | W102: 0 | X102: 0 | Y102: 0 | Z102: 0 | AA102: 0 | AB102: 0 | AC102: 0 | AD102: 0 | AE102: 0 | AF102: -
A103: 102 | L103: =IFERROR(VLOOKUP(G103,MinimumWages!$A$1:$R$60,MATCH(Employee_Data!H103,MinimumWages!$A$1:$R$1,0),0),0) -> 0 | M103: 0 | N103: =ROUND(MAX(ROUNDUP(IF(K103>30000,K103/2,L103/3*2),-2),IFERROR(VLOOKUP(G103,MinimumWages!$A$1:$R$60,(MATCH(Employee_Data!H103,MinimumWages!$A$1:$R$1,0)-4),0),0)),0) -> 0 | O103: 0 | P103: 0 | Q103: 0 | R103: 0 | S103: 0 | T103: 0 | U103: 0 | V103: 0 | W103: 0 | X103: 0 | Y103: 0 | Z103: 0 | AA103: 0 | AB103: 0 | AC103: 0 | AD103: 0 | AE103: 0 | AF103: -
A104: 103 | L104: =IFERROR(VLOOKUP(G104,MinimumWages!$A$1:$R$60,MATCH(Employee_Data!H104,MinimumWages!$A$1:$R$1,0),0),0) -> 0 | M104: 0 | N104: =ROUND(MAX(ROUNDUP(IF(K104>30000,K104/2,L104/3*2),-2),IFERROR(VLOOKUP(G104,MinimumWages!$A$1:$R$60,(MATCH(Employee_Data!H104,MinimumWages!$A$1:$R$1,0)-4),0),0)),0) -> 0 | O104: 0 | P104: 0 | Q104: 0 | R104: 0 | S104: 0 | T104: 0 | U104: 0 | V104: 0 | W104: 0 | X104: 0 | Y104: 0 | Z104: 0 | AA104: 0 | AB104: 0 | AC104: 0 | AD104: 0 | AE104: 0 | AF104: -
A105: 104 | L105: =IFERROR(VLOOKUP(G105,MinimumWages!$A$1:$R$60,MATCH(Employee_Data!H105,MinimumWages!$A$1:$R$1,0),0),0) -> 0 | M105: 0 | N105: =ROUND(MAX(ROUNDUP(IF(K105>30000,K105/2,L105/3*2),-2),IFERROR(VLOOKUP(G105,MinimumWages!$A$1:$R$60,(MATCH(Employee_Data!H105,MinimumWages!$A$1:$R$1,0)-4),0),0)),0) -> 0 | O105: 0 | P105: 0 | Q105: 0 | R105: 0 | S105: 0 | T105: 0 | U105: 0 | V105: 0 | W105: 0 | X105: 0 | Y105: 0 | Z105: 0 | AA105: 0 | AB105: 0 | AC105: 0 | AD105: 0 | AE105: 0 | AF105: -
A106: 105 | L106: =IFERROR(VLOOKUP(G106,MinimumWages!$A$1:$R$60,MATCH(Employee_Data!H106,MinimumWages!$A$1:$R$1,0),0),0) -> 0 | M106: 0 | N106: =ROUND(MAX(ROUNDUP(IF(K106>30000,K106/2,L106/3*2),-2),IFERROR(VLOOKUP(G106,MinimumWages!$A$1:$R$60,(MATCH(Employee_Data!H106,MinimumWages!$A$1:$R$1,0)-4),0),0)),0) -> 0 | O106: 0 | P106: 0 | Q106: 0 | R106: 0 | S106: 0 | T106: 0 | U106: 0 | V106: 0 | W106: 0 | X106: 0 | Y106: 0 | Z106: 0 | AA106: 0 | AB106: 0 | AC106: 0 | AD106: 0 | AE106: 0 | AF106: -
A107: 106 | L107: =IFERROR(VLOOKUP(G107,MinimumWages!$A$1:$R$60,MATCH(Employee_Data!H107,MinimumWages!$A$1:$R$1,0),0),0) -> 0 | M107: 0 | N107: =ROUND(MAX(ROUNDUP(IF(K107>30000,K107/2,L107/3*2),-2),IFERROR(VLOOKUP(G107,MinimumWages!$A$1:$R$60,(MATCH(Employee_Data!H107,MinimumWages!$A$1:$R$1,0)-4),0),0)),0) -> 0 | O107: 0 | P107: 0 | Q107: 0 | R107: 0 | S107: 0 | T107: 0 | U107: 0 | V107: 0 | W107: 0 | X107: 0 | Y107: 0 | Z107: 0 | AA107: 0 | AB107: 0 | AC107: 0 | AD107: 0 | AE107: 0 | AF107: -
A108: 107 | L108: =IFERROR(VLOOKUP(G108,MinimumWages!$A$1:$R$60,MATCH(Employee_Data!H108,MinimumWages!$A$1:$R$1,0),0),0) -> 0 | M108: 0 | N108: =ROUND(MAX(ROUNDUP(IF(K108>30000,K108/2,L108/3*2),-2),IFERROR(VLOOKUP(G108,MinimumWages!$A$1:$R$60,(MATCH(Employee_Data!H108,MinimumWages!$A$1:$R$1,0)-4),0),0)),0) -> 0 | O108: 0 | P108: 0 | Q108: 0 | R108: 0 | S108: 0 | T108: 0 | U108: 0 | V108: 0 | W108: 0 | X108: 0 | Y108: 0 | Z108: 0 | AA108: 0 | AB108: 0 | AC108: 0 | AD108: 0 | AE108: 0 | AF108: -
A109: 108 | L109: =IFERROR(VLOOKUP(G109,MinimumWages!$A$1:$R$60,MATCH(Employee_Data!H109,MinimumWages!$A$1:$R$1,0),0),0) -> 0 | M109: 0 | N109: =ROUND(MAX(ROUNDUP(IF(K109>30000,K109/2,L109/3*2),-2),IFERROR(VLOOKUP(G109,MinimumWages!$A$1:$R$60,(MATCH(Employee_Data!H109,MinimumWages!$A$1:$R$1,0)-4),0),0)),0) -> 0 | O109: 0 | P109: 0 | Q109: 0 | R109: 0 | S109: 0 | T109: 0 | U109: 0 | V109: 0 | W109: 0 | X109: 0 | Y109: 0 | Z109: 0 | AA109: 0 | AB109: 0 | AC109: 0 | AD109: 0 | AE109: 0 | AF109: -
A110: 109 | L110: =IFERROR(VLOOKUP(G110,MinimumWages!$A$1:$R$60,MATCH(Employee_Data!H110,MinimumWages!$A$1:$R$1,0),0),0) -> 0 | M110: 0 | N110: =ROUND(MAX(ROUNDUP(IF(K110>30000,K110/2,L110/3*2),-2),IFERROR(VLOOKUP(G110,MinimumWages!$A$1:$R$60,(MATCH(Employee_Data!H110,MinimumWages!$A$1:$R$1,0)-4),0),0)),0) -> 0 | O110: 0 | P110: 0 | Q110: 0 | R110: 0 | S110: 0 | T110: 0 | U110: 0 | V110: 0 | W110: 0 | X110: 0 | Y110: 0 | Z110: 0 | AA110: 0 | AB110: 0 | AC110: 0 | AD110: 0 | AE110: 0 | AF110: -
A111: 110 | L111: =IFERROR(VLOOKUP(G111,MinimumWages!$A$1:$R$60,MATCH(Employee_Data!H111,MinimumWages!$A$1:$R$1,0),0),0) -> 0 | M111: 0 | N111: =ROUND(MAX(ROUNDUP(IF(K111>30000,K111/2,L111/3*2),-2),IFERROR(VLOOKUP(G111,MinimumWages!$A$1:$R$60,(MATCH(Employee_Data!H111,MinimumWages!$A$1:$R$1,0)-4),0),0)),0) -> 0 | O111: 0 | P111: 0 | Q111: 0 | R111: 0 | S111: 0 | T111: 0 | U111: 0 | V111: 0 | W111: 0 | X111: 0 | Y111: 0 | Z111: 0 | AA111: 0 | AB111: 0 | AC111: 0 | AD111: 0 | AE111: 0 | AF111: -
A112: 111 | L112: =IFERROR(VLOOKUP(G112,MinimumWages!$A$1:$R$60,MATCH(Employee_Data!H112,MinimumWages!$A$1:$R$1,0),0),0) -> 0 | M112: 0 | N112: =ROUND(MAX(ROUNDUP(IF(K112>30000,K112/2,L112/3*2),-2),IFERROR(VLOOKUP(G112,MinimumWages!$A$1:$R$60,(MATCH(Employee_Data!H112,MinimumWages!$A$1:$R$1,0)-4),0),0)),0) -> 0 | O112: 0 | P112: 0 | Q112: 0 | R112: 0 | S112: 0 | T112: 0 | U112: 0 | V112: 0 | W112: 0 | X112: 0 | Y112: 0 | Z112: 0 | AA112: 0 | AB112: 0 | AC112: 0 | AD112: 0 | AE112: 0 | AF112: -
A113: 112 | L113: =IFERROR(VLOOKUP(G113,MinimumWages!$A$1:$R$60,MATCH(Employee_Data!H113,MinimumWages!$A$1:$R$1,0),0),0) -> 0 | M113: 0 | N113: =ROUND(MAX(ROUNDUP(IF(K113>30000,K113/2,L113/3*2),-2),IFERROR(VLOOKUP(G113,MinimumWages!$A$1:$R$60,(MATCH(Employee_Data!H113,MinimumWages!$A$1:$R$1,0)-4),0),0)),0) -> 0 | O113: 0 | P113: 0 | Q113: 0 | R113: 0 | S113: 0 | T113: 0 | U113: 0 | V113: 0 | W113: 0 | X113: 0 | Y113: 0 | Z113: 0 | AA113: 0 | AB113: 0 | AC113: 0 | AD113: 0 | AE113: 0 | AF113: -
A114: 113 | L114: =IFERROR(VLOOKUP(G114,MinimumWages!$A$1:$R$60,MATCH(Employee_Data!H114,MinimumWages!$A$1:$R$1,0),0),0) -> 0 | M114: 0 | N114: =ROUND(MAX(ROUNDUP(IF(K114>30000,K114/2,L114/3*2),-2),IFERROR(VLOOKUP(G114,MinimumWages!$A$1:$R$60,(MATCH(Employee_Data!H114,MinimumWages!$A$1:$R$1,0)-4),0),0)),0) -> 0 | O114: 0 | P114: 0 | Q114: 0 | R114: 0 | S114: 0 | T114: 0 | U114: 0 | V114: 0 | W114: 0 | X114: 0 | Y114: 0 | Z114: 0 | AA114: 0 | AB114: 0 | AC114: 0 | AD114: 0 | AE114: 0 | AF114: -
A115: 114 | L115: =IFERROR(VLOOKUP(G115,MinimumWages!$A$1:$R$60,MATCH(Employee_Data!H115,MinimumWages!$A$1:$R$1,0),0),0) -> 0 | M115: 0 | N115: =ROUND(MAX(ROUNDUP(IF(K115>30000,K115/2,L115/3*2),-2),IFERROR(VLOOKUP(G115,MinimumWages!$A$1:$R$60,(MATCH(Employee_Data!H115,MinimumWages!$A$1:$R$1,0)-4),0),0)),0) -> 0 | O115: 0 | P115: 0 | Q115: 0 | R115: 0 | S115: 0 | T115: 0 | U115: 0 | V115: 0 | W115: 0 | X115: 0 | Y115: 0 | Z115: 0 | AA115: 0 | AB115: 0 | AC115: 0 | AD115: 0 | AE115: 0 | AF115: -
A116: 115 | L116: =IFERROR(VLOOKUP(G116,MinimumWages!$A$1:$R$60,MATCH(Employee_Data!H116,MinimumWages!$A$1:$R$1,0),0),0) -> 0 | M116: 0 | N116: =ROUND(MAX(ROUNDUP(IF(K116>30000,K116/2,L116/3*2),-2),IFERROR(VLOOKUP(G116,MinimumWages!$A$1:$R$60,(MATCH(Employee_Data!H116,MinimumWages!$A$1:$R$1,0)-4),0),0)),0) -> 0 | O116: 0 | P116: 0 | Q116: 0 | R116: 0 | S116: 0 | T116: 0 | U116: 0 | V116: 0 | W116: 0 | X116: 0 | Y116: 0 | Z116: 0 | AA116: 0 | AB116: 0 | AC116: 0 | AD116: 0 | AE116: 0 | AF116: -
A117: 116 | L117: =IFERROR(VLOOKUP(G117,MinimumWages!$A$1:$R$60,MATCH(Employee_Data!H117,MinimumWages!$A$1:$R$1,0),0),0) -> 0 | M117: 0 | N117: =ROUND(MAX(ROUNDUP(IF(K117>30000,K117/2,L117/3*2),-2),IFERROR(VLOOKUP(G117,MinimumWages!$A$1:$R$60,(MATCH(Employee_Data!H117,MinimumWages!$A$1:$R$1,0)-4),0),0)),0) -> 0 | O117: 0 | P117: 0 | Q117: 0 | R117: 0 | S117: 0 | T117: 0 | U117: 0 | V117: 0 | W117: 0 | X117: 0 | Y117: 0 | Z117: 0 | AA117: 0 | AB117: 0 | AC117: 0 | AD117: 0 | AE117: 0 | AF117: -
A118: 117 | L118: =IFERROR(VLOOKUP(G118,MinimumWages!$A$1:$R$60,MATCH(Employee_Data!H118,MinimumWages!$A$1:$R$1,0),0),0) -> 0 | M118: 0 | N118: =ROUND(MAX(ROUNDUP(IF(K118>30000,K118/2,L118/3*2),-2),IFERROR(VLOOKUP(G118,MinimumWages!$A$1:$R$60,(MATCH(Employee_Data!H118,MinimumWages!$A$1:$R$1,0)-4),0),0)),0) -> 0 | O118: 0 | P118: 0 | Q118: 0 | R118: 0 | S118: 0 | T118: 0 | U118: 0 | V118: 0 | W118: 0 | X118: 0 | Y118: 0 | Z118: 0 | AA118: 0 | AB118: 0 | AC118: 0 | AD118: 0 | AE118: 0 | AF118: -
A119: 118 | L119: =IFERROR(VLOOKUP(G119,MinimumWages!$A$1:$R$60,MATCH(Employee_Data!H119,MinimumWages!$A$1:$R$1,0),0),0) -> 0 | M119: 0 | N119: =ROUND(MAX(ROUNDUP(IF(K119>30000,K119/2,L119/3*2),-2),IFERROR(VLOOKUP(G119,MinimumWages!$A$1:$R$60,(MATCH(Employee_Data!H119,MinimumWages!$A$1:$R$1,0)-4),0),0)),0) -> 0 | O119: 0 | P119: 0 | Q119: 0 | R119: 0 | S119: 0 | T119: 0 | U119: 0 | V119: 0 | W119: 0 | X119: 0 | Y119: 0 | Z119: 0 | AA119: 0 | AB119: 0 | AC119: 0 | AD119: 0 | AE119: 0 | AF119: -
A120: 119 | L120: =IFERROR(VLOOKUP(G120,MinimumWages!$A$1:$R$60,MATCH(Employee_Data!H120,MinimumWages!$A$1:$R$1,0),0),0) -> 0 | M120: 0 | N120: =ROUND(MAX(ROUNDUP(IF(K120>30000,K120/2,L120/3*2),-2),IFERROR(VLOOKUP(G120,MinimumWages!$A$1:$R$60,(MATCH(Employee_Data!H120,MinimumWages!$A$1:$R$1,0)-4),0),0)),0) -> 0 | O120: 0 | P120: 0 | Q120: 0 | R120: 0 | S120: 0 | T120: 0 | U120: 0 | V120: 0 | W120: 0 | X120: 0 | Y120: 0 | Z120: 0 | AA120: 0 | AB120: 0 | AC120: 0 | AD120: 0 | AE120: 0 | AF120: -
A121: 120 | L121: =IFERROR(VLOOKUP(G121,MinimumWages!$A$1:$R$60,MATCH(Employee_Data!H121,MinimumWages!$A$1:$R$1,0),0),0) -> 0 | M121: 0 | N121: =ROUND(MAX(ROUNDUP(IF(K121>30000,K121/2,L121/3*2),-2),IFERROR(VLOOKUP(G121,MinimumWages!$A$1:$R$60,(MATCH(Employee_Data!H121,MinimumWages!$A$1:$R$1,0)-4),0),0)),0) -> 0 | O121: 0 | P121: 0 | Q121: 0 | R121: 0 | S121: 0 | T121: 0 | U121: 0 | V121: 0 | W121: 0 | X121: 0 | Y121: 0 | Z121: 0 | AA121: 0 | AB121: 0 | AC121: 0 | AD121: 0 | AE121: 0 | AF121: -
A122: 121 | L122: =IFERROR(VLOOKUP(G122,MinimumWages!$A$1:$R$60,MATCH(Employee_Data!H122,MinimumWages!$A$1:$R$1,0),0),0) -> 0 | M122: 0 | N122: =ROUND(MAX(ROUNDUP(IF(K122>30000,K122/2,L122/3*2),-2),IFERROR(VLOOKUP(G122,MinimumWages!$A$1:$R$60,(MATCH(Employee_Data!H122,MinimumWages!$A$1:$R$1,0)-4),0),0)),0) -> 0 | O122: 0 | P122: 0 | Q122: 0 | R122: 0 | S122: 0 | T122: 0 | U122: 0 | V122: 0 | W122: 0 | X122: 0 | Y122: 0 | Z122: 0 | AA122: 0 | AB122: 0 | AC122: 0 | AD122: 0 | AE122: 0 | AF122: -
A123: 122 | L123: =IFERROR(VLOOKUP(G123,MinimumWages!$A$1:$R$60,MATCH(Employee_Data!H123,MinimumWages!$A$1:$R$1,0),0),0) -> 0 | M123: 0 | N123: =ROUND(MAX(ROUNDUP(IF(K123>30000,K123/2,L123/3*2),-2),IFERROR(VLOOKUP(G123,MinimumWages!$A$1:$R$60,(MATCH(Employee_Data!H123,MinimumWages!$A$1:$R$1,0)-4),0),0)),0) -> 0 | O123: 0 | P123: 0 | Q123: 0 | R123: 0 | S123: 0 | T123: 0 | U123: 0 | V123: 0 | W123: 0 | X123: 0 | Y123: 0 | Z123: 0 | AA123: 0 | AB123: 0 | AC123: 0 | AD123: 0 | AE123: 0 | AF123: -
A124: 123 | L124: =IFERROR(VLOOKUP(G124,MinimumWages!$A$1:$R$60,MATCH(Employee_Data!H124,MinimumWages!$A$1:$R$1,0),0),0) -> 0 | M124: 0 | N124: =ROUND(MAX(ROUNDUP(IF(K124>30000,K124/2,L124/3*2),-2),IFERROR(VLOOKUP(G124,MinimumWages!$A$1:$R$60,(MATCH(Employee_Data!H124,MinimumWages!$A$1:$R$1,0)-4),0),0)),0) -> 0 | O124: 0 | P124: 0 | Q124: 0 | R124: 0 | S124: 0 | T124: 0 | U124: 0 | V124: 0 | W124: 0 | X124: 0 | Y124: 0 | Z124: 0 | AA124: 0 | AB124: 0 | AC124: 0 | AD124: 0 | AE124: 0 | AF124: -
A125: 124 | L125: =IFERROR(VLOOKUP(G125,MinimumWages!$A$1:$R$60,MATCH(Employee_Data!H125,MinimumWages!$A$1:$R$1,0),0),0) -> 0 | M125: 0 | N125: =ROUND(MAX(ROUNDUP(IF(K125>30000,K125/2,L125/3*2),-2),IFERROR(VLOOKUP(G125,MinimumWages!$A$1:$R$60,(MATCH(Employee_Data!H125,MinimumWages!$A$1:$R$1,0)-4),0),0)),0) -> 0 | O125: 0 | P125: 0 | Q125: 0 | R125: 0 | S125: 0 | T125: 0 | U125: 0 | V125: 0 | W125: 0 | X125: 0 | Y125: 0 | Z125: 0 | AA125: 0 | AB125: 0 | AC125: 0 | AD125: 0 | AE125: 0 | AF125: -
A126: 125 | L126: =IFERROR(VLOOKUP(G126,MinimumWages!$A$1:$R$60,MATCH(Employee_Data!H126,MinimumWages!$A$1:$R$1,0),0),0) -> 0 | M126: 0 | N126: =ROUND(MAX(ROUNDUP(IF(K126>30000,K126/2,L126/3*2),-2),IFERROR(VLOOKUP(G126,MinimumWages!$A$1:$R$60,(MATCH(Employee_Data!H126,MinimumWages!$A$1:$R$1,0)-4),0),0)),0) -> 0 | O126: 0 | P126: 0 | Q126: 0 | R126: 0 | S126: 0 | T126: 0 | U126: 0 | V126: 0 | W126: 0 | X126: 0 | Y126: 0 | Z126: 0 | AA126: 0 | AB126: 0 | AC126: 0 | AD126: 0 | AE126: 0 | AF126: -
A127: 126 | L127: =IFERROR(VLOOKUP(G127,MinimumWages!$A$1:$R$60,MATCH(Employee_Data!H127,MinimumWages!$A$1:$R$1,0),0),0) -> 0 | M127: 0 | N127: =ROUND(MAX(ROUNDUP(IF(K127>30000,K127/2,L127/3*2),-2),IFERROR(VLOOKUP(G127,MinimumWages!$A$1:$R$60,(MATCH(Employee_Data!H127,MinimumWages!$A$1:$R$1,0)-4),0),0)),0) -> 0 | O127: 0 | P127: 0 | Q127: 0 | R127: 0 | S127: 0 | T127: 0 | U127: 0 | V127: 0 | W127: 0 | X127: 0 | Y127: 0 | Z127: 0 | AA127: 0 | AB127: 0 | AC127: 0 | AD127: 0 | AE127: 0 | AF127: -
A128: 127 | L128: =IFERROR(VLOOKUP(G128,MinimumWages!$A$1:$R$60,MATCH(Employee_Data!H128,MinimumWages!$A$1:$R$1,0),0),0) -> 0 | M128: 0 | N128: =ROUND(MAX(ROUNDUP(IF(K128>30000,K128/2,L128/3*2),-2),IFERROR(VLOOKUP(G128,MinimumWages!$A$1:$R$60,(MATCH(Employee_Data!H128,MinimumWages!$A$1:$R$1,0)-4),0),0)),0) -> 0 | O128: 0 | P128: 0 | Q128: 0 | R128: 0 | S128: 0 | T128: 0 | U128: 0 | V128: 0 | W128: 0 | X128: 0 | Y128: 0 | Z128: 0 | AA128: 0 | AB128: 0 | AC128: 0 | AD128: 0 | AE128: 0 | AF128: -
A129: 128 | L129: =IFERROR(VLOOKUP(G129,MinimumWages!$A$1:$R$60,MATCH(Employee_Data!H129,MinimumWages!$A$1:$R$1,0),0),0) -> 0 | M129: 0 | N129: =ROUND(MAX(ROUNDUP(IF(K129>30000,K129/2,L129/3*2),-2),IFERROR(VLOOKUP(G129,MinimumWages!$A$1:$R$60,(MATCH(Employee_Data!H129,MinimumWages!$A$1:$R$1,0)-4),0),0)),0) -> 0 | O129: 0 | P129: 0 | Q129: 0 | R129: 0 | S129: 0 | T129: 0 | U129: 0 | V129: 0 | W129: 0 | X129: 0 | Y129: 0 | Z129: 0 | AA129: 0 | AB129: 0 | AC129: 0 | AD129: 0 | AE129: 0 | AF129: -
A130: 129 | L130: =IFERROR(VLOOKUP(G130,MinimumWages!$A$1:$R$60,MATCH(Employee_Data!H130,MinimumWages!$A$1:$R$1,0),0),0) -> 0 | M130: 0 | N130: =ROUND(MAX(ROUNDUP(IF(K130>30000,K130/2,L130/3*2),-2),IFERROR(VLOOKUP(G130,MinimumWages!$A$1:$R$60,(MATCH(Employee_Data!H130,MinimumWages!$A$1:$R$1,0)-4),0),0)),0) -> 0 | O130: 0 | P130: 0 | Q130: 0 | R130: 0 | S130: 0 | T130: 0 | U130: 0 | V130: 0 | W130: 0 | X130: 0 | Y130: 0 | Z130: 0 | AA130: 0 | AB130: 0 | AC130: 0 | AD130: 0 | AE130: 0 | AF130: -
A131: =ROW()-1 -> 130 | L131: =IFERROR(VLOOKUP(G131,MinimumWages!$A$1:$R$60,MATCH(Employee_Data!H131,MinimumWages!$A$1:$R$1,0),0),0) -> 0 | M131: 0 | N131: =ROUND(MAX(ROUNDUP(IF(K131>30000,K131/2,L131/3*2),-2),IFERROR(VLOOKUP(G131,MinimumWages!$A$1:$R$60,(MATCH(Employee_Data!H131,MinimumWages!$A$1:$R$1,0)-4),0),0)),0) -> 0 | O131: 0 | P131: 0 | Q131: 0 | R131: 0 | S131: 0 | T131: 0 | U131: 0 | V131: 0 | W131: 0 | X131: 0 | Y131: 0 | Z131: 0 | AA131: 0 | AB131: 0 | AC131: 0 | AD131: =ROUND(AC131*12,0) -> 0 | AE131: 0 | AF131: -
A132: 131 | L132: =IFERROR(VLOOKUP(G132,MinimumWages!$A$1:$R$60,MATCH(Employee_Data!H132,MinimumWages!$A$1:$R$1,0),0),0) -> 0 | M132: 0 | N132: =ROUND(MAX(ROUNDUP(IF(K132>30000,K132/2,L132/3*2),-2),IFERROR(VLOOKUP(G132,MinimumWages!$A$1:$R$60,(MATCH(Employee_Data!H132,MinimumWages!$A$1:$R$1,0)-4),0),0)),0) -> 0 | O132: 0 | P132: 0 | Q132: 0 | R132: 0 | S132: 0 | T132: 0 | U132: 0 | V132: 0 | W132: 0 | X132: 0 | Y132: 0 | Z132: 0 | AA132: 0 | AB132: 0 | AC132: 0 | AD132: 0 | AE132: 0 | AF132: -
A133: 132 | L133: =IFERROR(VLOOKUP(G133,MinimumWages!$A$1:$R$60,MATCH(Employee_Data!H133,MinimumWages!$A$1:$R$1,0),0),0) -> 0 | M133: 0 | N133: =ROUND(MAX(ROUNDUP(IF(K133>30000,K133/2,L133/3*2),-2),IFERROR(VLOOKUP(G133,MinimumWages!$A$1:$R$60,(MATCH(Employee_Data!H133,MinimumWages!$A$1:$R$1,0)-4),0),0)),0) -> 0 | O133: 0 | P133: 0 | Q133: 0 | R133: 0 | S133: 0 | T133: 0 | U133: 0 | V133: 0 | W133: 0 | X133: 0 | Y133: 0 | Z133: 0 | AA133: 0 | AB133: 0 | AC133: 0 | AD133: 0 | AE133: 0 | AF133: -
A134: 133 | L134: =IFERROR(VLOOKUP(G134,MinimumWages!$A$1:$R$60,MATCH(Employee_Data!H134,MinimumWages!$A$1:$R$1,0),0),0) -> 0 | M134: 0 | N134: =ROUND(MAX(ROUNDUP(IF(K134>30000,K134/2,L134/3*2),-2),IFERROR(VLOOKUP(G134,MinimumWages!$A$1:$R$60,(MATCH(Employee_Data!H134,MinimumWages!$A$1:$R$1,0)-4),0),0)),0) -> 0 | O134: 0 | P134: 0 | Q134: 0 | R134: 0 | S134: 0 | T134: 0 | U134: 0 | V134: 0 | W134: 0 | X134: 0 | Y134: 0 | Z134: 0 | AA134: 0 | AB134: 0 | AC134: 0 | AD134: 0 | AE134: 0 | AF134: -
A135: 134 | L135: =IFERROR(VLOOKUP(G135,MinimumWages!$A$1:$R$60,MATCH(Employee_Data!H135,MinimumWages!$A$1:$R$1,0),0),0) -> 0 | M135: 0 | N135: =ROUND(MAX(ROUNDUP(IF(K135>30000,K135/2,L135/3*2),-2),IFERROR(VLOOKUP(G135,MinimumWages!$A$1:$R$60,(MATCH(Employee_Data!H135,MinimumWages!$A$1:$R$1,0)-4),0),0)),0) -> 0 | O135: 0 | P135: 0 | Q135: 0 | R135: 0 | S135: 0 | T135: 0 | U135: 0 | V135: 0 | W135: 0 | X135: 0 | Y135: 0 | Z135: 0 | AA135: 0 | AB135: 0 | AC135: 0 | AD135: 0 | AE135: 0 | AF135: -
A136: 135 | L136: =IFERROR(VLOOKUP(G136,MinimumWages!$A$1:$R$60,MATCH(Employee_Data!H136,MinimumWages!$A$1:$R$1,0),0),0) -> 0 | M136: 0 | N136: =ROUND(MAX(ROUNDUP(IF(K136>30000,K136/2,L136/3*2),-2),IFERROR(VLOOKUP(G136,MinimumWages!$A$1:$R$60,(MATCH(Employee_Data!H136,MinimumWages!$A$1:$R$1,0)-4),0),0)),0) -> 0 | O136: 0 | P136: 0 | Q136: 0 | R136: 0 | S136: 0 | T136: 0 | U136: 0 | V136: 0 | W136: 0 | X136: 0 | Y136: 0 | Z136: 0 | AA136: 0 | AB136: 0 | AC136: 0 | AD136: 0 | AE136: 0 | AF136: -
A137: 136 | L137: =IFERROR(VLOOKUP(G137,MinimumWages!$A$1:$R$60,MATCH(Employee_Data!H137,MinimumWages!$A$1:$R$1,0),0),0) -> 0 | M137: 0 | N137: =ROUND(MAX(ROUNDUP(IF(K137>30000,K137/2,L137/3*2),-2),IFERROR(VLOOKUP(G137,MinimumWages!$A$1:$R$60,(MATCH(Employee_Data!H137,MinimumWages!$A$1:$R$1,0)-4),0),0)),0) -> 0 | O137: 0 | P137: 0 | Q137: 0 | R137: 0 | S137: 0 | T137: 0 | U137: 0 | V137: 0 | W137: 0 | X137: 0 | Y137: 0 | Z137: 0 | AA137: 0 | AB137: 0 | AC137: 0 | AD137: 0 | AE137: 0 | AF137: -
A138: 137 | L138: =IFERROR(VLOOKUP(G138,MinimumWages!$A$1:$R$60,MATCH(Employee_Data!H138,MinimumWages!$A$1:$R$1,0),0),0) -> 0 | M138: 0 | N138: =ROUND(MAX(ROUNDUP(IF(K138>30000,K138/2,L138/3*2),-2),IFERROR(VLOOKUP(G138,MinimumWages!$A$1:$R$60,(MATCH(Employee_Data!H138,MinimumWages!$A$1:$R$1,0)-4),0),0)),0) -> 0 | O138: 0 | P138: 0 | Q138: 0 | R138: 0 | S138: 0 | T138: 0 | U138: 0 | V138: 0 | W138: 0 | X138: 0 | Y138: 0 | Z138: 0 | AA138: 0 | AB138: 0 | AC138: 0 | AD138: 0 | AE138: 0 | AF138: -
A139: 138 | L139: =IFERROR(VLOOKUP(G139,MinimumWages!$A$1:$R$60,MATCH(Employee_Data!H139,MinimumWages!$A$1:$R$1,0),0),0) -> 0 | M139: 0 | N139: =ROUND(MAX(ROUNDUP(IF(K139>30000,K139/2,L139/3*2),-2),IFERROR(VLOOKUP(G139,MinimumWages!$A$1:$R$60,(MATCH(Employee_Data!H139,MinimumWages!$A$1:$R$1,0)-4),0),0)),0) -> 0 | O139: 0 | P139: 0 | Q139: 0 | R139: 0 | S139: 0 | T139: 0 | U139: 0 | V139: 0 | W139: 0 | X139: 0 | Y139: 0 | Z139: 0 | AA139: 0 | AB139: 0 | AC139: 0 | AD139: 0 | AE139: 0 | AF139: -
A140: 139 | L140: =IFERROR(VLOOKUP(G140,MinimumWages!$A$1:$R$60,MATCH(Employee_Data!H140,MinimumWages!$A$1:$R$1,0),0),0) -> 0 | M140: 0 | N140: =ROUND(MAX(ROUNDUP(IF(K140>30000,K140/2,L140/3*2),-2),IFERROR(VLOOKUP(G140,MinimumWages!$A$1:$R$60,(MATCH(Employee_Data!H140,MinimumWages!$A$1:$R$1,0)-4),0),0)),0) -> 0 | O140: 0 | P140: 0 | Q140: 0 | R140: 0 | S140: 0 | T140: 0 | U140: 0 | V140: 0 | W140: 0 | X140: 0 | Y140: 0 | Z140: 0 | AA140: 0 | AB140: 0 | AC140: 0 | AD140: 0 | AE140: 0 | AF140: -
A141: 140 | L141: =IFERROR(VLOOKUP(G141,MinimumWages!$A$1:$R$60,MATCH(Employee_Data!H141,MinimumWages!$A$1:$R$1,0),0),0) -> 0 | M141: 0 | N141: =ROUND(MAX(ROUNDUP(IF(K141>30000,K141/2,L141/3*2),-2),IFERROR(VLOOKUP(G141,MinimumWages!$A$1:$R$60,(MATCH(Employee_Data!H141,MinimumWages!$A$1:$R$1,0)-4),0),0)),0) -> 0 | O141: 0 | P141: 0 | Q141: 0 | R141: 0 | S141: 0 | T141: 0 | U141: 0 | V141: 0 | W141: 0 | X141: 0 | Y141: 0 | Z141: 0 | AA141: 0 | AB141: 0 | AC141: 0 | AD141: 0 | AE141: 0 | AF141: -
A142: 141 | L142: =IFERROR(VLOOKUP(G142,MinimumWages!$A$1:$R$60,MATCH(Employee_Data!H142,MinimumWages!$A$1:$R$1,0),0),0) -> 0 | M142: 0 | N142: =ROUND(MAX(ROUNDUP(IF(K142>30000,K142/2,L142/3*2),-2),IFERROR(VLOOKUP(G142,MinimumWages!$A$1:$R$60,(MATCH(Employee_Data!H142,MinimumWages!$A$1:$R$1,0)-4),0),0)),0) -> 0 | O142: 0 | P142: 0 | Q142: 0 | R142: 0 | S142: 0 | T142: 0 | U142: 0 | V142: 0 | W142: 0 | X142: 0 | Y142: 0 | Z142: 0 | AA142: 0 | AB142: 0 | AC142: 0 | AD142: 0 | AE142: 0 | AF142: -
A143: 142 | L143: =IFERROR(VLOOKUP(G143,MinimumWages!$A$1:$R$60,MATCH(Employee_Data!H143,MinimumWages!$A$1:$R$1,0),0),0) -> 0 | M143: 0 | N143: =ROUND(MAX(ROUNDUP(IF(K143>30000,K143/2,L143/3*2),-2),IFERROR(VLOOKUP(G143,MinimumWages!$A$1:$R$60,(MATCH(Employee_Data!H143,MinimumWages!$A$1:$R$1,0)-4),0),0)),0) -> 0 | O143: 0 | P143: 0 | Q143: 0 | R143: 0 | S143: 0 | T143: 0 | U143: 0 | V143: 0 | W143: 0 | X143: 0 | Y143: 0 | Z143: 0 | AA143: 0 | AB143: 0 | AC143: 0 | AD143: 0 | AE143: 0 | AF143: -
A144: 143 | L144: =IFERROR(VLOOKUP(G144,MinimumWages!$A$1:$R$60,MATCH(Employee_Data!H144,MinimumWages!$A$1:$R$1,0),0),0) -> 0 | M144: 0 | N144: =ROUND(MAX(ROUNDUP(IF(K144>30000,K144/2,L144/3*2),-2),IFERROR(VLOOKUP(G144,MinimumWages!$A$1:$R$60,(MATCH(Employee_Data!H144,MinimumWages!$A$1:$R$1,0)-4),0),0)),0) -> 0 | O144: 0 | P144: 0 | Q144: 0 | R144: 0 | S144: 0 | T144: 0 | U144: 0 | V144: 0 | W144: 0 | X144: 0 | Y144: 0 | Z144: 0 | AA144: 0 | AB144: 0 | AC144: 0 | AD144: 0 | AE144: 0 | AF144: -
A145: 144 | L145: =IFERROR(VLOOKUP(G145,MinimumWages!$A$1:$R$60,MATCH(Employee_Data!H145,MinimumWages!$A$1:$R$1,0),0),0) -> 0 | M145: 0 | N145: =ROUND(MAX(ROUNDUP(IF(K145>30000,K145/2,L145/3*2),-2),IFERROR(VLOOKUP(G145,MinimumWages!$A$1:$R$60,(MATCH(Employee_Data!H145,MinimumWages!$A$1:$R$1,0)-4),0),0)),0) -> 0 | O145: 0 | P145: 0 | Q145: 0 | R145: 0 | S145: 0 | T145: 0 | U145: 0 | V145: 0 | W145: 0 | X145: 0 | Y145: 0 | Z145: 0 | AA145: 0 | AB145: 0 | AC145: 0 | AD145: 0 | AE145: 0 | AF145: -
A146: 145 | L146: =IFERROR(VLOOKUP(G146,MinimumWages!$A$1:$R$60,MATCH(Employee_Data!H146,MinimumWages!$A$1:$R$1,0),0),0) -> 0 | M146: 0 | N146: =ROUND(MAX(ROUNDUP(IF(K146>30000,K146/2,L146/3*2),-2),IFERROR(VLOOKUP(G146,MinimumWages!$A$1:$R$60,(MATCH(Employee_Data!H146,MinimumWages!$A$1:$R$1,0)-4),0),0)),0) -> 0 | O146: 0 | P146: 0 | Q146: 0 | R146: 0 | S146: 0 | T146: 0 | U146: 0 | V146: 0 | W146: 0 | X146: 0 | Y146: 0 | Z146: 0 | AA146: 0 | AB146: 0 | AC146: 0 | AD146: 0 | AE146: 0 | AF146: -
A147: 146 | L147: =IFERROR(VLOOKUP(G147,MinimumWages!$A$1:$R$60,MATCH(Employee_Data!H147,MinimumWages!$A$1:$R$1,0),0),0) -> 0 | M147: 0 | N147: =ROUND(MAX(ROUNDUP(IF(K147>30000,K147/2,L147/3*2),-2),IFERROR(VLOOKUP(G147,MinimumWages!$A$1:$R$60,(MATCH(Employee_Data!H147,MinimumWages!$A$1:$R$1,0)-4),0),0)),0) -> 0 | O147: 0 | P147: 0 | Q147: 0 | R147: 0 | S147: 0 | T147: 0 | U147: 0 | V147: 0 | W147: 0 | X147: 0 | Y147: 0 | Z147: 0 | AA147: 0 | AB147: 0 | AC147: 0 | AD147: 0 | AE147: 0 | AF147: -
A148: 147 | L148: =IFERROR(VLOOKUP(G148,MinimumWages!$A$1:$R$60,MATCH(Employee_Data!H148,MinimumWages!$A$1:$R$1,0),0),0) -> 0 | M148: 0 | N148: =ROUND(MAX(ROUNDUP(IF(K148>30000,K148/2,L148/3*2),-2),IFERROR(VLOOKUP(G148,MinimumWages!$A$1:$R$60,(MATCH(Employee_Data!H148,MinimumWages!$A$1:$R$1,0)-4),0),0)),0) -> 0 | O148: 0 | P148: 0 | Q148: 0 | R148: 0 | S148: 0 | T148: 0 | U148: 0 | V148: 0 | W148: 0 | X148: 0 | Y148: 0 | Z148: 0 | AA148: 0 | AB148: 0 | AC148: 0 | AD148: 0 | AE148: 0 | AF148: -
A149: 148 | L149: =IFERROR(VLOOKUP(G149,MinimumWages!$A$1:$R$60,MATCH(Employee_Data!H149,MinimumWages!$A$1:$R$1,0),0),0) -> 0 | M149: 0 | N149: =ROUND(MAX(ROUNDUP(IF(K149>30000,K149/2,L149/3*2),-2),IFERROR(VLOOKUP(G149,MinimumWages!$A$1:$R$60,(MATCH(Employee_Data!H149,MinimumWages!$A$1:$R$1,0)-4),0),0)),0) -> 0 | O149: 0 | P149: 0 | Q149: 0 | R149: 0 | S149: 0 | T149: 0 | U149: 0 | V149: 0 | W149: 0 | X149: 0 | Y149: 0 | Z149: 0 | AA149: 0 | AB149: 0 | AC149: 0 | AD149: 0 | AE149: 0 | AF149: -
A150: 149 | L150: =IFERROR(VLOOKUP(G150,MinimumWages!$A$1:$R$60,MATCH(Employee_Data!H150,MinimumWages!$A$1:$R$1,0),0),0) -> 0 | M150: 0 | N150: =ROUND(MAX(ROUNDUP(IF(K150>30000,K150/2,L150/3*2),-2),IFERROR(VLOOKUP(G150,MinimumWages!$A$1:$R$60,(MATCH(Employee_Data!H150,MinimumWages!$A$1:$R$1,0)-4),0),0)),0) -> 0 | O150: 0 | P150: 0 | Q150: 0 | R150: 0 | S150: 0 | T150: 0 | U150: 0 | V150: 0 | W150: 0 | X150: 0 | Y150: 0 | Z150: 0 | AA150: 0 | AB150: 0 | AC150: 0 | AD150: 0 | AE150: 0 | AF150: -
A151: 150 | L151: =IFERROR(VLOOKUP(G151,MinimumWages!$A$1:$R$60,MATCH(Employee_Data!H151,MinimumWages!$A$1:$R$1,0),0),0) -> 0 | M151: 0 | N151: =ROUND(MAX(ROUNDUP(IF(K151>30000,K151/2,L151/3*2),-2),IFERROR(VLOOKUP(G151,MinimumWages!$A$1:$R$60,(MATCH(Employee_Data!H151,MinimumWages!$A$1:$R$1,0)-4),0),0)),0) -> 0 | O151: 0 | P151: 0 | Q151: 0 | R151: 0 | S151: 0 | T151: 0 | U151: 0 | V151: 0 | W151: 0 | X151: 0 | Y151: 0 | Z151: 0 | AA151: 0 | AB151: 0 | AC151: 0 | AD151: 0 | AE151: 0 | AF151: -
A152: 151 | L152: =IFERROR(VLOOKUP(G152,MinimumWages!$A$1:$R$60,MATCH(Employee_Data!H152,MinimumWages!$A$1:$R$1,0),0),0) -> 0 | M152: 0 | N152: =ROUND(MAX(ROUNDUP(IF(K152>30000,K152/2,L152/3*2),-2),IFERROR(VLOOKUP(G152,MinimumWages!$A$1:$R$60,(MATCH(Employee_Data!H152,MinimumWages!$A$1:$R$1,0)-4),0),0)),0) -> 0 | O152: 0 | P152: 0 | Q152: 0 | R152: 0 | S152: 0 | T152: 0 | U152: 0 | V152: 0 | W152: 0 | X152: 0 | Y152: 0 | Z152: 0 | AA152: 0 | AB152: 0 | AC152: 0 | AD152: 0 | AE152: 0 | AF152: -
A153: 152 | L153: =IFERROR(VLOOKUP(G153,MinimumWages!$A$1:$R$60,MATCH(Employee_Data!H153,MinimumWages!$A$1:$R$1,0),0),0) -> 0 | M153: 0 | N153: =ROUND(MAX(ROUNDUP(IF(K153>30000,K153/2,L153/3*2),-2),IFERROR(VLOOKUP(G153,MinimumWages!$A$1:$R$60,(MATCH(Employee_Data!H153,MinimumWages!$A$1:$R$1,0)-4),0),0)),0) -> 0 | O153: 0 | P153: 0 | Q153: 0 | R153: 0 | S153: 0 | T153: 0 | U153: 0 | V153: 0 | W153: 0 | X153: 0 | Y153: 0 | Z153: 0 | AA153: 0 | AB153: 0 | AC153: 0 | AD153: 0 | AE153: 0 | AF153: -
A154: 153 | L154: =IFERROR(VLOOKUP(G154,MinimumWages!$A$1:$R$60,MATCH(Employee_Data!H154,MinimumWages!$A$1:$R$1,0),0),0) -> 0 | M154: 0 | N154: =ROUND(MAX(ROUNDUP(IF(K154>30000,K154/2,L154/3*2),-2),IFERROR(VLOOKUP(G154,MinimumWages!$A$1:$R$60,(MATCH(Employee_Data!H154,MinimumWages!$A$1:$R$1,0)-4),0),0)),0) -> 0 | O154: 0 | P154: 0 | Q154: 0 | R154: 0 | S154: 0 | T154: 0 | U154: 0 | V154: 0 | W154: 0 | X154: 0 | Y154: 0 | Z154: 0 | AA154: 0 | AB154: 0 | AC154: 0 | AD154: 0 | AE154: 0 | AF154: -
A155: 154 | L155: =IFERROR(VLOOKUP(G155,MinimumWages!$A$1:$R$60,MATCH(Employee_Data!H155,MinimumWages!$A$1:$R$1,0),0),0) -> 0 | M155: 0 | N155: =ROUND(MAX(ROUNDUP(IF(K155>30000,K155/2,L155/3*2),-2),IFERROR(VLOOKUP(G155,MinimumWages!$A$1:$R$60,(MATCH(Employee_Data!H155,MinimumWages!$A$1:$R$1,0)-4),0),0)),0) -> 0 | O155: 0 | P155: 0 | Q155: 0 | R155: 0 | S155: 0 | T155: 0 | U155: 0 | V155: 0 | W155: 0 | X155: 0 | Y155: 0 | Z155: 0 | AA155: 0 | AB155: 0 | AC155: 0 | AD155: 0 | AE155: 0 | AF155: -
A156: 155 | L156: =IFERROR(VLOOKUP(G156,MinimumWages!$A$1:$R$60,MATCH(Employee_Data!H156,MinimumWages!$A$1:$R$1,0),0),0) -> 0 | M156: 0 | N156: =ROUND(MAX(ROUNDUP(IF(K156>30000,K156/2,L156/3*2),-2),IFERROR(VLOOKUP(G156,MinimumWages!$A$1:$R$60,(MATCH(Employee_Data!H156,MinimumWages!$A$1:$R$1,0)-4),0),0)),0) -> 0 | O156: 0 | P156: 0 | Q156: 0 | R156: 0 | S156: 0 | T156: 0 | U156: 0 | V156: 0 | W156: 0 | X156: 0 | Y156: 0 | Z156: 0 | AA156: 0 | AB156: 0 | AC156: 0 | AD156: 0 | AE156: 0 | AF156: -
A157: 156 | L157: =IFERROR(VLOOKUP(G157,MinimumWages!$A$1:$R$60,MATCH(Employee_Data!H157,MinimumWages!$A$1:$R$1,0),0),0) -> 0 | M157: 0 | N157: =ROUND(MAX(ROUNDUP(IF(K157>30000,K157/2,L157/3*2),-2),IFERROR(VLOOKUP(G157,MinimumWages!$A$1:$R$60,(MATCH(Employee_Data!H157,MinimumWages!$A$1:$R$1,0)-4),0),0)),0) -> 0 | O157: 0 | P157: 0 | Q157: 0 | R157: 0 | S157: 0 | T157: 0 | U157: 0 | V157: 0 | W157: 0 | X157: 0 | Y157: 0 | Z157: 0 | AA157: 0 | AB157: 0 | AC157: 0 | AD157: 0 | AE157: 0 | AF157: -
A158: 157 | L158: =IFERROR(VLOOKUP(G158,MinimumWages!$A$1:$R$60,MATCH(Employee_Data!H158,MinimumWages!$A$1:$R$1,0),0),0) -> 0 | M158: 0 | N158: =ROUND(MAX(ROUNDUP(IF(K158>30000,K158/2,L158/3*2),-2),IFERROR(VLOOKUP(G158,MinimumWages!$A$1:$R$60,(MATCH(Employee_Data!H158,MinimumWages!$A$1:$R$1,0)-4),0),0)),0) -> 0 | O158: 0 | P158: 0 | Q158: 0 | R158: 0 | S158: 0 | T158: 0 | U158: 0 | V158: 0 | W158: 0 | X158: 0 | Y158: 0 | Z158: 0 | AA158: 0 | AB158: 0 | AC158: 0 | AD158: 0 | AE158: 0 | AF158: -
A159: 158 | L159: =IFERROR(VLOOKUP(G159,MinimumWages!$A$1:$R$60,MATCH(Employee_Data!H159,MinimumWages!$A$1:$R$1,0),0),0) -> 0 | M159: =ROUND(K159*12,0) -> 0 | N159: =ROUND(MAX(ROUNDUP(IF(K159>30000,K159/2,L159/3*2),-2),IFERROR(VLOOKUP(G159,MinimumWages!$A$1:$R$60,(MATCH(Employee_Data!H159,MinimumWages!$A$1:$R$1,0)-4),0),0)),0) -> 0 | O159: =ROUND(IF(K159<30000,N159*5%,N159/2),0) -> 0 | P159: 0 | Q159: 0 | R159: 0 | S159: 0 | T159: 0 | U159: 0 | V159: =SUM(N159:U159) -> 0 | W159: =IF(I159="Yes",ROUND(IF(J159="Limit",MIN((V159-O159),15000),IF(N159>15000,N159,MIN((V159-O159),15000)))*12%,0),0) -> 0 | X159: =IF(V159>21000,0,ROUNDUP(V159*3.75%,0)) -> 0 | Y159: =SUM(V159:X159) -> 0 | Z159: =IF(AND(N159<=21000,K159>0),ROUND(MAX(L159,7000)*8.33%,0),0) -> 0 | AA159: =ROUND(N159/26*15/12,0) -> 0 | AB159: 0 | AC159: =SUM(Y159:AB159) -> 0 | AD159: 0 | AE159: =ROUND((M159-AD159)/12,0) -> 0 | AF159: =IF(AE159<>0,"Un-Matched CTC",IF(COUNTIF(N159:AE159,"<0")>0,"Less CTC","-")) -> -
A160: 159 | L160: =IFERROR(VLOOKUP(G160,MinimumWages!$A$1:$R$60,MATCH(Employee_Data!H160,MinimumWages!$A$1:$R$1,0),0),0) -> 0 | M160: 0 | N160: =ROUND(MAX(ROUNDUP(IF(K160>30000,K160/2,L160/3*2),-2),IFERROR(VLOOKUP(G160,MinimumWages!$A$1:$R$60,(MATCH(Employee_Data!H160,MinimumWages!$A$1:$R$1,0)-4),0),0)),0) -> 0 | O160: 0 | P160: 0 | Q160: 0 | R160: 0 | S160: 0 | T160: 0 | U160: 0 | V160: 0 | W160: 0 | X160: 0 | Y160: 0 | Z160: 0 | AA160: 0 | AB160: 0 | AC160: 0 | AD160: 0 | AE160: 0 | AF160: -
A161: 160 | L161: =IFERROR(VLOOKUP(G161,MinimumWages!$A$1:$R$60,MATCH(Employee_Data!H161,MinimumWages!$A$1:$R$1,0),0),0) -> 0 | M161: 0 | N161: =ROUND(MAX(ROUNDUP(IF(K161>30000,K161/2,L161/3*2),-2),IFERROR(VLOOKUP(G161,MinimumWages!$A$1:$R$60,(MATCH(Employee_Data!H161,MinimumWages!$A$1:$R$1,0)-4),0),0)),0) -> 0 | O161: 0 | P161: 0 | Q161: 0 | R161: 0 | S161: 0 | T161: 0 | U161: 0 | V161: 0 | W161: 0 | X161: 0 | Y161: 0 | Z161: 0 | AA161: 0 | AB161: 0 | AC161: 0 | AD161: 0 | AE161: 0 | AF161: -
A162: 161 | L162: =IFERROR(VLOOKUP(G162,MinimumWages!$A$1:$R$60,MATCH(Employee_Data!H162,MinimumWages!$A$1:$R$1,0),0),0) -> 0 | M162: 0 | N162: =ROUND(MAX(ROUNDUP(IF(K162>30000,K162/2,L162/3*2),-2),IFERROR(VLOOKUP(G162,MinimumWages!$A$1:$R$60,(MATCH(Employee_Data!H162,MinimumWages!$A$1:$R$1,0)-4),0),0)),0) -> 0 | O162: 0 | P162: 0 | Q162: 0 | R162: 0 | S162: 0 | T162: 0 | U162: 0 | V162: 0 | W162: 0 | X162: 0 | Y162: 0 | Z162: 0 | AA162: 0 | AB162: 0 | AC162: 0 | AD162: 0 | AE162: 0 | AF162: -
A163: 162 | L163: =IFERROR(VLOOKUP(G163,MinimumWages!$A$1:$R$60,MATCH(Employee_Data!H163,MinimumWages!$A$1:$R$1,0),0),0) -> 0 | M163: 0 | N163: =ROUND(MAX(ROUNDUP(IF(K163>30000,K163/2,L163/3*2),-2),IFERROR(VLOOKUP(G163,MinimumWages!$A$1:$R$60,(MATCH(Employee_Data!H163,MinimumWages!$A$1:$R$1,0)-4),0),0)),0) -> 0 | O163: 0 | P163: 0 | Q163: 0 | R163: 0 | S163: 0 | T163: 0 | U163: 0 | V163: 0 | W163: 0 | X163: 0 | Y163: 0 | Z163: 0 | AA163: 0 | AB163: 0 | AC163: 0 | AD163: 0 | AE163: 0 | AF163: -
A164: 163 | L164: =IFERROR(VLOOKUP(G164,MinimumWages!$A$1:$R$60,MATCH(Employee_Data!H164,MinimumWages!$A$1:$R$1,0),0),0) -> 0 | M164: 0 | N164: =ROUND(MAX(ROUNDUP(IF(K164>30000,K164/2,L164/3*2),-2),IFERROR(VLOOKUP(G164,MinimumWages!$A$1:$R$60,(MATCH(Employee_Data!H164,MinimumWages!$A$1:$R$1,0)-4),0),0)),0) -> 0 | O164: 0 | P164: 0 | Q164: 0 | R164: 0 | S164: 0 | T164: 0 | U164: 0 | V164: 0 | W164: 0 | X164: 0 | Y164: 0 | Z164: 0 | AA164: 0 | AB164: 0 | AC164: 0 | AD164: 0 | AE164: 0 | AF164: -
A165: 164 | L165: =IFERROR(VLOOKUP(G165,MinimumWages!$A$1:$R$60,MATCH(Employee_Data!H165,MinimumWages!$A$1:$R$1,0),0),0) -> 0 | M165: 0 | N165: =ROUND(MAX(ROUNDUP(IF(K165>30000,K165/2,L165/3*2),-2),IFERROR(VLOOKUP(G165,MinimumWages!$A$1:$R$60,(MATCH(Employee_Data!H165,MinimumWages!$A$1:$R$1,0)-4),0),0)),0) -> 0 | O165: 0 | P165: 0 | Q165: 0 | R165: 0 | S165: 0 | T165: 0 | U165: 0 | V165: 0 | W165: 0 | X165: 0 | Y165: 0 | Z165: 0 | AA165: 0 | AB165: 0 | AC165: 0 | AD165: 0 | AE165: 0 | AF165: -
A166: 165 | L166: =IFERROR(VLOOKUP(G166,MinimumWages!$A$1:$R$60,MATCH(Employee_Data!H166,MinimumWages!$A$1:$R$1,0),0),0) -> 0 | M166: 0 | N166: =ROUND(MAX(ROUNDUP(IF(K166>30000,K166/2,L166/3*2),-2),IFERROR(VLOOKUP(G166,MinimumWages!$A$1:$R$60,(MATCH(Employee_Data!H166,MinimumWages!$A$1:$R$1,0)-4),0),0)),0) -> 0 | O166: 0 | P166: 0 | Q166: 0 | R166: 0 | S166: 0 | T166: 0 | U166: 0 | V166: 0 | W166: 0 | X166: 0 | Y166: 0 | Z166: 0 | AA166: 0 | AB166: 0 | AC166: 0 | AD166: 0 | AE166: 0 | AF166: -
A167: 166 | L167: =IFERROR(VLOOKUP(G167,MinimumWages!$A$1:$R$60,MATCH(Employee_Data!H167,MinimumWages!$A$1:$R$1,0),0),0) -> 0 | M167: 0 | N167: =ROUND(MAX(ROUNDUP(IF(K167>30000,K167/2,L167/3*2),-2),IFERROR(VLOOKUP(G167,MinimumWages!$A$1:$R$60,(MATCH(Employee_Data!H167,MinimumWages!$A$1:$R$1,0)-4),0),0)),0) -> 0 | O167: 0 | P167: 0 | Q167: 0 | R167: 0 | S167: 0 | T167: 0 | U167: 0 | V167: 0 | W167: 0 | X167: 0 | Y167: 0 | Z167: 0 | AA167: 0 | AB167: 0 | AC167: 0 | AD167: 0 | AE167: 0 | AF167: -
A168: 167 | L168: =IFERROR(VLOOKUP(G168,MinimumWages!$A$1:$R$60,MATCH(Employee_Data!H168,MinimumWages!$A$1:$R$1,0),0),0) -> 0 | M168: 0 | N168: =ROUND(MAX(ROUNDUP(IF(K168>30000,K168/2,L168/3*2),-2),IFERROR(VLOOKUP(G168,MinimumWages!$A$1:$R$60,(MATCH(Employee_Data!H168,MinimumWages!$A$1:$R$1,0)-4),0),0)),0) -> 0 | O168: 0 | P168: 0 | Q168: 0 | R168: 0 | S168: 0 | T168: 0 | U168: 0 | V168: 0 | W168: 0 | X168: 0 | Y168: 0 | Z168: 0 | AA168: 0 | AB168: 0 | AC168: 0 | AD168: 0 | AE168: 0 | AF168: -
A169: 168 | L169: =IFERROR(VLOOKUP(G169,MinimumWages!$A$1:$R$60,MATCH(Employee_Data!H169,MinimumWages!$A$1:$R$1,0),0),0) -> 0 | M169: 0 | N169: =ROUND(MAX(ROUNDUP(IF(K169>30000,K169/2,L169/3*2),-2),IFERROR(VLOOKUP(G169,MinimumWages!$A$1:$R$60,(MATCH(Employee_Data!H169,MinimumWages!$A$1:$R$1,0)-4),0),0)),0) -> 0 | O169: 0 | P169: 0 | Q169: 0 | R169: 0 | S169: 0 | T169: 0 | U169: 0 | V169: 0 | W169: 0 | X169: 0 | Y169: 0 | Z169: 0 | AA169: 0 | AB169: 0 | AC169: 0 | AD169: 0 | AE169: 0 | AF169: -
A170: 169 | L170: =IFERROR(VLOOKUP(G170,MinimumWages!$A$1:$R$60,MATCH(Employee_Data!H170,MinimumWages!$A$1:$R$1,0),0),0) -> 0 | M170: 0 | N170: =ROUND(MAX(ROUNDUP(IF(K170>30000,K170/2,L170/3*2),-2),IFERROR(VLOOKUP(G170,MinimumWages!$A$1:$R$60,(MATCH(Employee_Data!H170,MinimumWages!$A$1:$R$1,0)-4),0),0)),0) -> 0 | O170: 0 | P170: 0 | Q170: 0 | R170: 0 | S170: 0 | T170: 0 | U170: 0 | V170: 0 | W170: 0 | X170: 0 | Y170: 0 | Z170: 0 | AA170: 0 | AB170: 0 | AC170: 0 | AD170: 0 | AE170: 0 | AF170: -
A171: 170 | L171: =IFERROR(VLOOKUP(G171,MinimumWages!$A$1:$R$60,MATCH(Employee_Data!H171,MinimumWages!$A$1:$R$1,0),0),0) -> 0 | M171: 0 | N171: =ROUND(MAX(ROUNDUP(IF(K171>30000,K171/2,L171/3*2),-2),IFERROR(VLOOKUP(G171,MinimumWages!$A$1:$R$60,(MATCH(Employee_Data!H171,MinimumWages!$A$1:$R$1,0)-4),0),0)),0) -> 0 | O171: 0 | P171: 0 | Q171: 0 | R171: 0 | S171: 0 | T171: 0 | U171: 0 | V171: 0 | W171: 0 | X171: 0 | Y171: 0 | Z171: 0 | AA171: 0 | AB171: 0 | AC171: 0 | AD171: 0 | AE171: 0 | AF171: -
A172: 171 | L172: =IFERROR(VLOOKUP(G172,MinimumWages!$A$1:$R$60,MATCH(Employee_Data!H172,MinimumWages!$A$1:$R$1,0),0),0) -> 0 | M172: 0 | N172: =ROUND(MAX(ROUNDUP(IF(K172>30000,K172/2,L172/3*2),-2),IFERROR(VLOOKUP(G172,MinimumWages!$A$1:$R$60,(MATCH(Employee_Data!H172,MinimumWages!$A$1:$R$1,0)-4),0),0)),0) -> 0 | O172: 0 | P172: 0 | Q172: 0 | R172: 0 | S172: 0 | T172: 0 | U172: 0 | V172: 0 | W172: 0 | X172: 0 | Y172: 0 | Z172: 0 | AA172: 0 | AB172: 0 | AC172: 0 | AD172: 0 | AE172: 0 | AF172: -
A173: 172 | L173: =IFERROR(VLOOKUP(G173,MinimumWages!$A$1:$R$60,MATCH(Employee_Data!H173,MinimumWages!$A$1:$R$1,0),0),0) -> 0 | M173: 0 | N173: =ROUND(MAX(ROUNDUP(IF(K173>30000,K173/2,L173/3*2),-2),IFERROR(VLOOKUP(G173,MinimumWages!$A$1:$R$60,(MATCH(Employee_Data!H173,MinimumWages!$A$1:$R$1,0)-4),0),0)),0) -> 0 | O173: 0 | P173: 0 | Q173: 0 | R173: 0 | S173: 0 | T173: 0 | U173: 0 | V173: 0 | W173: 0 | X173: 0 | Y173: 0 | Z173: 0 | AA173: 0 | AB173: 0 | AC173: 0 | AD173: 0 | AE173: 0 | AF173: -
A174: 173 | L174: =IFERROR(VLOOKUP(G174,MinimumWages!$A$1:$R$60,MATCH(Employee_Data!H174,MinimumWages!$A$1:$R$1,0),0),0) -> 0 | M174: 0 | N174: =ROUND(MAX(ROUNDUP(IF(K174>30000,K174/2,L174/3*2),-2),IFERROR(VLOOKUP(G174,MinimumWages!$A$1:$R$60,(MATCH(Employee_Data!H174,MinimumWages!$A$1:$R$1,0)-4),0),0)),0) -> 0 | O174: 0 | P174: 0 | Q174: 0 | R174: 0 | S174: 0 | T174: 0 | U174: 0 | V174: 0 | W174: 0 | X174: 0 | Y174: 0 | Z174: 0 | AA174: 0 | AB174: 0 | AC174: 0 | AD174: 0 | AE174: 0 | AF174: -
A175: 174 | L175: =IFERROR(VLOOKUP(G175,MinimumWages!$A$1:$R$60,MATCH(Employee_Data!H175,MinimumWages!$A$1:$R$1,0),0),0) -> 0 | M175: 0 | N175: =ROUND(MAX(ROUNDUP(IF(K175>30000,K175/2,L175/3*2),-2),IFERROR(VLOOKUP(G175,MinimumWages!$A$1:$R$60,(MATCH(Employee_Data!H175,MinimumWages!$A$1:$R$1,0)-4),0),0)),0) -> 0 | O175: 0 | P175: 0 | Q175: 0 | R175: 0 | S175: 0 | T175: 0 | U175: 0 | V175: 0 | W175: 0 | X175: 0 | Y175: 0 | Z175: 0 | AA175: 0 | AB175: 0 | AC175: 0 | AD175: 0 | AE175: 0 | AF175: -
A176: 175 | L176: =IFERROR(VLOOKUP(G176,MinimumWages!$A$1:$R$60,MATCH(Employee_Data!H176,MinimumWages!$A$1:$R$1,0),0),0) -> 0 | M176: 0 | N176: =ROUND(MAX(ROUNDUP(IF(K176>30000,K176/2,L176/3*2),-2),IFERROR(VLOOKUP(G176,MinimumWages!$A$1:$R$60,(MATCH(Employee_Data!H176,MinimumWages!$A$1:$R$1,0)-4),0),0)),0) -> 0 | O176: 0 | P176: 0 | Q176: 0 | R176: 0 | S176: 0 | T176: 0 | U176: 0 | V176: 0 | W176: 0 | X176: 0 | Y176: 0 | Z176: 0 | AA176: 0 | AB176: 0 | AC176: 0 | AD176: 0 | AE176: 0 | AF176: -
A177: 176 | L177: =IFERROR(VLOOKUP(G177,MinimumWages!$A$1:$R$60,MATCH(Employee_Data!H177,MinimumWages!$A$1:$R$1,0),0),0) -> 0 | M177: 0 | N177: =ROUND(MAX(ROUNDUP(IF(K177>30000,K177/2,L177/3*2),-2),IFERROR(VLOOKUP(G177,MinimumWages!$A$1:$R$60,(MATCH(Employee_Data!H177,MinimumWages!$A$1:$R$1,0)-4),0),0)),0) -> 0 | O177: 0 | P177: 0 | Q177: 0 | R177: 0 | S177: 0 | T177: 0 | U177: 0 | V177: 0 | W177: 0 | X177: 0 | Y177: 0 | Z177: 0 | AA177: 0 | AB177: 0 | AC177: 0 | AD177: 0 | AE177: 0 | AF177: -
A178: 177 | L178: =IFERROR(VLOOKUP(G178,MinimumWages!$A$1:$R$60,MATCH(Employee_Data!H178,MinimumWages!$A$1:$R$1,0),0),0) -> 0 | M178: 0 | N178: =ROUND(MAX(ROUNDUP(IF(K178>30000,K178/2,L178/3*2),-2),IFERROR(VLOOKUP(G178,MinimumWages!$A$1:$R$60,(MATCH(Employee_Data!H178,MinimumWages!$A$1:$R$1,0)-4),0),0)),0) -> 0 | O178: 0 | P178: 0 | Q178: 0 | R178: 0 | S178: 0 | T178: 0 | U178: 0 | V178: 0 | W178: 0 | X178: 0 | Y178: 0 | Z178: 0 | AA178: 0 | AB178: 0 | AC178: 0 | AD178: 0 | AE178: 0 | AF178: -
A179: 178 | L179: =IFERROR(VLOOKUP(G179,MinimumWages!$A$1:$R$60,MATCH(Employee_Data!H179,MinimumWages!$A$1:$R$1,0),0),0) -> 0 | M179: 0 | N179: =ROUND(MAX(ROUNDUP(IF(K179>30000,K179/2,L179/3*2),-2),IFERROR(VLOOKUP(G179,MinimumWages!$A$1:$R$60,(MATCH(Employee_Data!H179,MinimumWages!$A$1:$R$1,0)-4),0),0)),0) -> 0 | O179: 0 | P179: 0 | Q179: 0 | R179: 0 | S179: 0 | T179: 0 | U179: 0 | V179: 0 | W179: 0 | X179: 0 | Y179: 0 | Z179: 0 | AA179: 0 | AB179: 0 | AC179: 0 | AD179: 0 | AE179: 0 | AF179: -
A180: 179 | L180: =IFERROR(VLOOKUP(G180,MinimumWages!$A$1:$R$60,MATCH(Employee_Data!H180,MinimumWages!$A$1:$R$1,0),0),0) -> 0 | M180: 0 | N180: =ROUND(MAX(ROUNDUP(IF(K180>30000,K180/2,L180/3*2),-2),IFERROR(VLOOKUP(G180,MinimumWages!$A$1:$R$60,(MATCH(Employee_Data!H180,MinimumWages!$A$1:$R$1,0)-4),0),0)),0) -> 0 | O180: 0 | P180: 0 | Q180: 0 | R180: 0 | S180: 0 | T180: 0 | U180: 0 | V180: 0 | W180: 0 | X180: 0 | Y180: 0 | Z180: 0 | AA180: 0 | AB180: 0 | AC180: 0 | AD180: 0 | AE180: 0 | AF180: -
A181: 180 | L181: =IFERROR(VLOOKUP(G181,MinimumWages!$A$1:$R$60,MATCH(Employee_Data!H181,MinimumWages!$A$1:$R$1,0),0),0) -> 0 | M181: 0 | N181: =ROUND(MAX(ROUNDUP(IF(K181>30000,K181/2,L181/3*2),-2),IFERROR(VLOOKUP(G181,MinimumWages!$A$1:$R$60,(MATCH(Employee_Data!H181,MinimumWages!$A$1:$R$1,0)-4),0),0)),0) -> 0 | O181: 0 | P181: 0 | Q181: 0 | R181: 0 | S181: 0 | T181: 0 | U181: 0 | V181: 0 | W181: 0 | X181: 0 | Y181: 0 | Z181: 0 | AA181: 0 | AB181: 0 | AC181: 0 | AD181: 0 | AE181: 0 | AF181: -
A182: 181 | L182: =IFERROR(VLOOKUP(G182,MinimumWages!$A$1:$R$60,MATCH(Employee_Data!H182,MinimumWages!$A$1:$R$1,0),0),0) -> 0 | M182: 0 | N182: =ROUND(MAX(ROUNDUP(IF(K182>30000,K182/2,L182/3*2),-2),IFERROR(VLOOKUP(G182,MinimumWages!$A$1:$R$60,(MATCH(Employee_Data!H182,MinimumWages!$A$1:$R$1,0)-4),0),0)),0) -> 0 | O182: 0 | P182: 0 | Q182: 0 | R182: 0 | S182: 0 | T182: 0 | U182: 0 | V182: 0 | W182: 0 | X182: 0 | Y182: 0 | Z182: 0 | AA182: 0 | AB182: 0 | AC182: 0 | AD182: 0 | AE182: 0 | AF182: -
A183: 182 | L183: =IFERROR(VLOOKUP(G183,MinimumWages!$A$1:$R$60,MATCH(Employee_Data!H183,MinimumWages!$A$1:$R$1,0),0),0) -> 0 | M183: 0 | N183: =ROUND(MAX(ROUNDUP(IF(K183>30000,K183/2,L183/3*2),-2),IFERROR(VLOOKUP(G183,MinimumWages!$A$1:$R$60,(MATCH(Employee_Data!H183,MinimumWages!$A$1:$R$1,0)-4),0),0)),0) -> 0 | O183: 0 | P183: 0 | Q183: 0 | R183: 0 | S183: 0 | T183: 0 | U183: 0 | V183: 0 | W183: 0 | X183: 0 | Y183: 0 | Z183: 0 | AA183: 0 | AB183: 0 | AC183: 0 | AD183: 0 | AE183: 0 | AF183: -
A184: 183 | L184: =IFERROR(VLOOKUP(G184,MinimumWages!$A$1:$R$60,MATCH(Employee_Data!H184,MinimumWages!$A$1:$R$1,0),0),0) -> 0 | M184: 0 | N184: =ROUND(MAX(ROUNDUP(IF(K184>30000,K184/2,L184/3*2),-2),IFERROR(VLOOKUP(G184,MinimumWages!$A$1:$R$60,(MATCH(Employee_Data!H184,MinimumWages!$A$1:$R$1,0)-4),0),0)),0) -> 0 | O184: 0 | P184: 0 | Q184: 0 | R184: 0 | S184: 0 | T184: 0 | U184: 0 | V184: 0 | W184: 0 | X184: 0 | Y184: 0 | Z184: 0 | AA184: 0 | AB184: 0 | AC184: 0 | AD184: 0 | AE184: 0 | AF184: -
A185: 184 | L185: =IFERROR(VLOOKUP(G185,MinimumWages!$A$1:$R$60,MATCH(Employee_Data!H185,MinimumWages!$A$1:$R$1,0),0),0) -> 0 | M185: 0 | N185: =ROUND(MAX(ROUNDUP(IF(K185>30000,K185/2,L185/3*2),-2),IFERROR(VLOOKUP(G185,MinimumWages!$A$1:$R$60,(MATCH(Employee_Data!H185,MinimumWages!$A$1:$R$1,0)-4),0),0)),0) -> 0 | O185: 0 | P185: 0 | Q185: 0 | R185: 0 | S185: 0 | T185: 0 | U185: 0 | V185: 0 | W185: 0 | X185: 0 | Y185: 0 | Z185: 0 | AA185: 0 | AB185: 0 | AC185: 0 | AD185: 0 | AE185: 0 | AF185: -
A186: 185 | L186: =IFERROR(VLOOKUP(G186,MinimumWages!$A$1:$R$60,MATCH(Employee_Data!H186,MinimumWages!$A$1:$R$1,0),0),0) -> 0 | M186: 0 | N186: =ROUND(MAX(ROUNDUP(IF(K186>30000,K186/2,L186/3*2),-2),IFERROR(VLOOKUP(G186,MinimumWages!$A$1:$R$60,(MATCH(Employee_Data!H186,MinimumWages!$A$1:$R$1,0)-4),0),0)),0) -> 0 | O186: 0 | P186: 0 | Q186: 0 | R186: 0 | S186: 0 | T186: 0 | U186: 0 | V186: 0 | W186: 0 | X186: 0 | Y186: 0 | Z186: 0 | AA186: 0 | AB186: 0 | AC186: 0 | AD186: 0 | AE186: 0 | AF186: -
A187: 186 | L187: =IFERROR(VLOOKUP(G187,MinimumWages!$A$1:$R$60,MATCH(Employee_Data!H187,MinimumWages!$A$1:$R$1,0),0),0) -> 0 | M187: 0 | N187: =ROUND(MAX(ROUNDUP(IF(K187>30000,K187/2,L187/3*2),-2),IFERROR(VLOOKUP(G187,MinimumWages!$A$1:$R$60,(MATCH(Employee_Data!H187,MinimumWages!$A$1:$R$1,0)-4),0),0)),0) -> 0 | O187: 0 | P187: 0 | Q187: 0 | R187: 0 | S187: 0 | T187: 0 | U187: 0 | V187: 0 | W187: 0 | X187: 0 | Y187: 0 | Z187: 0 | AA187: 0 | AB187: 0 | AC187: 0 | AD187: 0 | AE187: 0 | AF187: -
A188: 187 | L188: =IFERROR(VLOOKUP(G188,MinimumWages!$A$1:$R$60,MATCH(Employee_Data!H188,MinimumWages!$A$1:$R$1,0),0),0) -> 0 | M188: 0 | N188: =ROUND(MAX(ROUNDUP(IF(K188>30000,K188/2,L188/3*2),-2),IFERROR(VLOOKUP(G188,MinimumWages!$A$1:$R$60,(MATCH(Employee_Data!H188,MinimumWages!$A$1:$R$1,0)-4),0),0)),0) -> 0 | O188: 0 | P188: 0 | Q188: 0 | R188: 0 | S188: 0 | T188: 0 | U188: 0 | V188: 0 | W188: 0 | X188: 0 | Y188: 0 | Z188: 0 | AA188: 0 | AB188: 0 | AC188: 0 | AD188: 0 | AE188: 0 | AF188: -
A189: 188 | L189: =IFERROR(VLOOKUP(G189,MinimumWages!$A$1:$R$60,MATCH(Employee_Data!H189,MinimumWages!$A$1:$R$1,0),0),0) -> 0 | M189: 0 | N189: =ROUND(MAX(ROUNDUP(IF(K189>30000,K189/2,L189/3*2),-2),IFERROR(VLOOKUP(G189,MinimumWages!$A$1:$R$60,(MATCH(Employee_Data!H189,MinimumWages!$A$1:$R$1,0)-4),0),0)),0) -> 0 | O189: 0 | P189: 0 | Q189: 0 | R189: 0 | S189: 0 | T189: 0 | U189: 0 | V189: 0 | W189: 0 | X189: 0 | Y189: 0 | Z189: 0 | AA189: 0 | AB189: 0 | AC189: 0 | AD189: 0 | AE189: 0 | AF189: -
A190: 189 | L190: =IFERROR(VLOOKUP(G190,MinimumWages!$A$1:$R$60,MATCH(Employee_Data!H190,MinimumWages!$A$1:$R$1,0),0),0) -> 0 | M190: 0 | N190: =ROUND(MAX(ROUNDUP(IF(K190>30000,K190/2,L190/3*2),-2),IFERROR(VLOOKUP(G190,MinimumWages!$A$1:$R$60,(MATCH(Employee_Data!H190,MinimumWages!$A$1:$R$1,0)-4),0),0)),0) -> 0 | O190: 0 | P190: 0 | Q190: 0 | R190: 0 | S190: 0 | T190: 0 | U190: 0 | V190: 0 | W190: 0 | X190: 0 | Y190: 0 | Z190: 0 | AA190: 0 | AB190: 0 | AC190: 0 | AD190: 0 | AE190: 0 | AF190: -
A191: 190 | L191: =IFERROR(VLOOKUP(G191,MinimumWages!$A$1:$R$60,MATCH(Employee_Data!H191,MinimumWages!$A$1:$R$1,0),0),0) -> 0 | M191: 0 | N191: =ROUND(MAX(ROUNDUP(IF(K191>30000,K191/2,L191/3*2),-2),IFERROR(VLOOKUP(G191,MinimumWages!$A$1:$R$60,(MATCH(Employee_Data!H191,MinimumWages!$A$1:$R$1,0)-4),0),0)),0) -> 0 | O191: 0 | P191: 0 | Q191: 0 | R191: 0 | S191: 0 | T191: 0 | U191: 0 | V191: 0 | W191: 0 | X191: 0 | Y191: 0 | Z191: 0 | AA191: 0 | AB191: 0 | AC191: 0 | AD191: 0 | AE191: 0 | AF191: -
A192: 191 | L192: =IFERROR(VLOOKUP(G192,MinimumWages!$A$1:$R$60,MATCH(Employee_Data!H192,MinimumWages!$A$1:$R$1,0),0),0) -> 0 | M192: 0 | N192: =ROUND(MAX(ROUNDUP(IF(K192>30000,K192/2,L192/3*2),-2),IFERROR(VLOOKUP(G192,MinimumWages!$A$1:$R$60,(MATCH(Employee_Data!H192,MinimumWages!$A$1:$R$1,0)-4),0),0)),0) -> 0 | O192: 0 | P192: 0 | Q192: 0 | R192: 0 | S192: 0 | T192: 0 | U192: 0 | V192: 0 | W192: 0 | X192: 0 | Y192: 0 | Z192: 0 | AA192: 0 | AB192: 0 | AC192: 0 | AD192: 0 | AE192: 0 | AF192: -
A193: 192 | L193: =IFERROR(VLOOKUP(G193,MinimumWages!$A$1:$R$60,MATCH(Employee_Data!H193,MinimumWages!$A$1:$R$1,0),0),0) -> 0 | M193: 0 | N193: =ROUND(MAX(ROUNDUP(IF(K193>30000,K193/2,L193/3*2),-2),IFERROR(VLOOKUP(G193,MinimumWages!$A$1:$R$60,(MATCH(Employee_Data!H193,MinimumWages!$A$1:$R$1,0)-4),0),0)),0) -> 0 | O193: 0 | P193: 0 | Q193: 0 | R193: 0 | S193: 0 | T193: 0 | U193: 0 | V193: 0 | W193: 0 | X193: 0 | Y193: 0 | Z193: 0 | AA193: 0 | AB193: 0 | AC193: 0 | AD193: 0 | AE193: 0 | AF193: -
A194: 193 | L194: =IFERROR(VLOOKUP(G194,MinimumWages!$A$1:$R$60,MATCH(Employee_Data!H194,MinimumWages!$A$1:$R$1,0),0),0) -> 0 | M194: 0 | N194: =ROUND(MAX(ROUNDUP(IF(K194>30000,K194/2,L194/3*2),-2),IFERROR(VLOOKUP(G194,MinimumWages!$A$1:$R$60,(MATCH(Employee_Data!H194,MinimumWages!$A$1:$R$1,0)-4),0),0)),0) -> 0 | O194: 0 | P194: 0 | Q194: 0 | R194: 0 | S194: 0 | T194: 0 | U194: 0 | V194: 0 | W194: 0 | X194: 0 | Y194: 0 | Z194: 0 | AA194: 0 | AB194: 0 | AC194: 0 | AD194: 0 | AE194: 0 | AF194: -
A195: =ROW()-1 -> 194 | L195: =IFERROR(VLOOKUP(G195,MinimumWages!$A$1:$R$60,MATCH(Employee_Data!H195,MinimumWages!$A$1:$R$1,0),0),0) -> 0 | M195: 0 | N195: =ROUND(MAX(ROUNDUP(IF(K195>30000,K195/2,L195/3*2),-2),IFERROR(VLOOKUP(G195,MinimumWages!$A$1:$R$60,(MATCH(Employee_Data!H195,MinimumWages!$A$1:$R$1,0)-4),0),0)),0) -> 0 | O195: 0 | P195: 0 | Q195: 0 | R195: 0 | S195: 0 | T195: 0 | U195: 0 | V195: 0 | W195: 0 | X195: 0 | Y195: 0 | Z195: 0 | AA195: 0 | AB195: 0 | AC195: 0 | AD195: =ROUND(AC195*12,0) -> 0 | AE195: 0 | AF195: -
A196: 195 | L196: =IFERROR(VLOOKUP(G196,MinimumWages!$A$1:$R$60,MATCH(Employee_Data!H196,MinimumWages!$A$1:$R$1,0),0),0) -> 0 | M196: 0 | N196: =ROUND(MAX(ROUNDUP(IF(K196>30000,K196/2,L196/3*2),-2),IFERROR(VLOOKUP(G196,MinimumWages!$A$1:$R$60,(MATCH(Employee_Data!H196,MinimumWages!$A$1:$R$1,0)-4),0),0)),0) -> 0 | O196: 0 | P196: 0 | Q196: 0 | R196: 0 | S196: 0 | T196: 0 | U196: 0 | V196: 0 | W196: 0 | X196: 0 | Y196: 0 | Z196: 0 | AA196: 0 | AB196: 0 | AC196: 0 | AD196: 0 | AE196: 0 | AF196: -
A197: 196 | L197: =IFERROR(VLOOKUP(G197,MinimumWages!$A$1:$R$60,MATCH(Employee_Data!H197,MinimumWages!$A$1:$R$1,0),0),0) -> 0 | M197: 0 | N197: =ROUND(MAX(ROUNDUP(IF(K197>30000,K197/2,L197/3*2),-2),IFERROR(VLOOKUP(G197,MinimumWages!$A$1:$R$60,(MATCH(Employee_Data!H197,MinimumWages!$A$1:$R$1,0)-4),0),0)),0) -> 0 | O197: 0 | P197: 0 | Q197: 0 | R197: 0 | S197: 0 | T197: 0 | U197: 0 | V197: 0 | W197: 0 | X197: 0 | Y197: 0 | Z197: 0 | AA197: 0 | AB197: 0 | AC197: 0 | AD197: 0 | AE197: 0 | AF197: -
A198: 197 | L198: =IFERROR(VLOOKUP(G198,MinimumWages!$A$1:$R$60,MATCH(Employee_Data!H198,MinimumWages!$A$1:$R$1,0),0),0) -> 0 | M198: 0 | N198: =ROUND(MAX(ROUNDUP(IF(K198>30000,K198/2,L198/3*2),-2),IFERROR(VLOOKUP(G198,MinimumWages!$A$1:$R$60,(MATCH(Employee_Data!H198,MinimumWages!$A$1:$R$1,0)-4),0),0)),0) -> 0 | O198: 0 | P198: 0 | Q198: 0 | R198: 0 | S198: 0 | T198: 0 | U198: 0 | V198: 0 | W198: 0 | X198: 0 | Y198: 0 | Z198: 0 | AA198: 0 | AB198: 0 | AC198: 0 | AD198: 0 | AE198: 0 | AF198: -
A199: 198 | L199: =IFERROR(VLOOKUP(G199,MinimumWages!$A$1:$R$60,MATCH(Employee_Data!H199,MinimumWages!$A$1:$R$1,0),0),0) -> 0 | M199: 0 | N199: =ROUND(MAX(ROUNDUP(IF(K199>30000,K199/2,L199/3*2),-2),IFERROR(VLOOKUP(G199,MinimumWages!$A$1:$R$60,(MATCH(Employee_Data!H199,MinimumWages!$A$1:$R$1,0)-4),0),0)),0) -> 0 | O199: 0 | P199: 0 | Q199: 0 | R199: 0 | S199: 0 | T199: 0 | U199: 0 | V199: 0 | W199: 0 | X199: 0 | Y199: 0 | Z199: 0 | AA199: 0 | AB199: 0 | AC199: 0 | AD199: 0 | AE199: 0 | AF199: -
A200: 199 | L200: =IFERROR(VLOOKUP(G200,MinimumWages!$A$1:$R$60,MATCH(Employee_Data!H200,MinimumWages!$A$1:$R$1,0),0),0) -> 0 | M200: 0 | N200: =ROUND(MAX(ROUNDUP(IF(K200>30000,K200/2,L200/3*2),-2),IFERROR(VLOOKUP(G200,MinimumWages!$A$1:$R$60,(MATCH(Employee_Data!H200,MinimumWages!$A$1:$R$1,0)-4),0),0)),0) -> 0 | O200: 0 | P200: 0 | Q200: 0 | R200: 0 | S200: 0 | T200: 0 | U200: 0 | V200: 0 | W200: 0 | X200: 0 | Y200: 0 | Z200: 0 | AA200: 0 | AB200: 0 | AC200: 0 | AD200: 0 | AE200: 0 | AF200: -
... 262 more rows

Sheet MinimumWages
A1: State | B1: Effective From - To | C1: Basic+DA | D1: VDA | E1: HRA | F1: SPLALL | G1: Unskilled | H1: Basic+DA | I1: VDA | J1: HRA | K1: SPLALL | L1: Semi-Skilled | M1: Basic+DA | N1: VDA | O1: HRA | P1: SPLALL | Q1: Skilled | R1: Upadted on 03.05.2023
A2: Andhra Pradesh | B2: From 01.04.2023 To 30.09.2023 | C2: 3700 | D2: 7379 | E2: 0 | F2: 0 | G2: =SUM(C2:F2) -> 11079 | H2: 4102 | I2: 7379 | J2: 0 | K2: 0 | L2: =SUM(H2:K2) -> 11481 | M2: 4722 | N2: 7379 | O2: 0 | P2: 0 | Q2: =SUM(M2:P2) -> 12101
A3: Andaman | B3: From 01.01.2023 to 30.06.2023 | C3: 13754 | D3: 0 | E3: 0 | F3: 0 | G3: =SUM(C3:F3) -> 13754 | H3: 15236 | I3: 0 | J3: 0 | K3: 0 | L3: =SUM(H3:K3) -> 15236 | M3: 17446 | N3: 0 | O3: 0 | P3: 0 | Q3: =SUM(M3:P3) -> 17446
A4: Arunachal Pradesh | B4: From 01.04.2016 to Till Date | C4: 6600 | D4: 0 | E4: 0 | F4: 0 | G4: 6600 | H4: 6900 | I4: 0 | J4: 0 | K4: 0 | L4: 6900 | M4: 7200 | N4: 0 | O4: 0 | P4: 0 | Q4: 7200
A5: Assam | B5: From 01.06.2021 to Till Date | C5: 7200 | D5: 1746 | E5: 0 | F5: 0 | G5: 8946 | H5: 8400 | I5: 2038 | J5: 0 | K5: 0 | L5: 10438 | M5: 10500 | N5: 2548 | O5: 0 | P5: 0 | Q5: 13048
A6: Bihar | B6: From 01.04.2023 To 30.09.2023 | C6: 6344 | D6: 3744 | E6: 0 | F6: 0 | G6: 10088 | H6: 6630 | I6: 3848 | J6: 0 | K6: 0 | L6: 10478 | M6: 8060 | N6: 4706 | O6: 0 | P6: 0 | Q6: 12766
A7: Chandigarh | B7: From 01.10.2022 To 31.03.2023 | C7: 12623 | D7: 0 | E7: 0 | F7: 0 | G7: 12623 | H7: 12873 | I7: 0 | J7: 0 | K7: 0 | L7: 12873 | M7: 13298 | N7: 0 | O7: 0 | P7: 0 | Q7: 13298
A8: Chhattisgarh | B8: From 01.04.2023 To 30.09.2023 | C8: 8320 | D8: 2160 | E8: 0 | F8: 0 | G8: 10480 | H8: 8970 | I8: 2160 | J8: 0 | K8: 0 | L8: 11130 | M8: 9750 | N8: 2160 | O8: 0 | P8: 0 | Q8: 11910
A9: Dadra & Nagar Haveli | B9: From 01.04.2021 to Till Date | C9: 6968 | D9: 1877 | E9: 0 | F9: 0 | G9: 8845 | H9: 7176 | I9: 1877 | J9: 0 | K9: 0 | L9: 9053 | M9: 7384 | N9: 1877 | O9: 0 | P9: 0 | Q9: 9261
A10: Daman and Diu | B10: From 01.04.2020 to Till Date | C10: 6968 | D10: 1469 | E10: 0 | F10: 0 | G10: 8437 | H10: 7176 | I10: 1469 | J10: 0 | K10: 0 | L10: 8645 | M10: 7384 | N10: 1469 | O10: 0 | P10: 0 | Q10: 8853
A11: Delhi | B11: From 01.04.2023 To 30.09.2023 | C11: 16792 | D11: 442 | E11: 0 | F11: 0 | G11: 17234 | H11: 18499 | I11: 494 | J11: 0 | K11: 0 | L11: 18993 | M11: 20357 | N11: 546 | O11: 0 | P11: 0 | Q11: 20903
A12: Goa | B12: From 01.10.2022 To 31.03.2023 | C12: 8060 | D12: 2392 | E12: 0 | F12: 0 | G12: 10452 | H12: 9568 | I12: 2392 | J12: 0 | K12: 0 | L12: 11960 | M12: 10998 | N12: 2392 | O12: 0 | P12: 0 | Q12: 13390
A13: Gujarat | B13: From 01.04.2023 To 30.09.2023 | C13: 7176 | D13: 4576 | E13: 0 | F13: 0 | G13: 11752 | H13: 7384 | I13: 4628 | J13: 0 | K13: 0 | L13: 12012 | M13: 7618 | N13: 4706 | O13: 0 | P13: 0 | Q13: 12324
A14: Haryana | B14: From 01.01.2023 to 30-06-2023 | C14: 7600 | D14: 2933 | E14: 0 | F14: 0 | G14: 10533 | H14: 8379 | I14: 3233 | J14: 0 | K14: 0 | L14: 11612 | M14: 9238 | N14: 3565 | O14: 0 | P14: 0 | Q14: 12803
A15: Himachal Pradesh | B15: From 01.04.2022 To 30.09.2022 | C15: 10500 | D15: 0 | E15: 0 | F15: 0 | G15: 10500 | H15: 11098 | I15: 0 | J15: 0 | K15: 0 | L15: 11098 | M15: 12191 | N15: 0 | O15: 0 | P15: 0 | Q15: 12191
A16: Jammu and Kashmir | B16: From 17.10.2022 | C16: 8086 | D16: 0 | E16: 0 | F16: 0 | G16: 8086 | H16: 10400 | I16: 0 | J16: 0 | K16: 0 | L16: 10400 | M16: 12558 | N16: 0 | O16: 0 | P16: 0 | Q16: 12558
A17: Jharkhand | B17: From 01.04.2023 To 30.09.2023 | C17: 7145 | D17: 1851 | E17: 0 | F17: 0 | G17: 8996 | H17: 7485 | I17: 1940 | J17: 0 | K17: 0 | L17: 9425 | M17: 9867 | N17: 2557 | O17: 0 | P17: 0 | Q17: 12424
A18: Karnataka | B18: From 01.04.2023 to 31.03.2024 | C18: 11588 | D18: 2837 | E18: 0 | F18: 0 | G18: 14425 | H18: 12747 | I18: 2837 | J18: 0 | K18: 0 | L18: 15584 | M18: 14021 | N18: 2837 | O18: 0 | P18: 0 | Q18: 16858
A19: Kerala | B19: From 01.12.2022 to TILL Date | C19: 8910 | D19: 4594 | E19: 0 | F19: 0 | G19: 13504 | H19: 8910 | I19: 4594 | J19: 0 | K19: 0 | L19: 13504 | M19: 9330 | N19: 4594 | O19: 0 | P19: 0 | Q19: 13924
A20: Lakshadweep | B20: From 01.01.2016 | C20: 7618 | D20: 0 | E20: 0 | F20: 0 | G20: 7618 | H20: 8424 | I20: 0 | J20: 0 | K20: 0 | L20: 8424 | M20: 9906 | N20: 0 | O20: 0 | P20: 0 | Q20: 9906
A21: Madhya Pradesh | B21: From 01.04.2023 To 30.09.2023 | C21: 6500 | D21: 3150 | E21: 0 | F21: 0 | G21: 9650 | H21: 7057 | I21: 3450 | J21: 0 | K21: 0 | L21: 10507 | M21: 8435 | N21: 3450 | O21: 0 | P21: 0 | Q21: 11885
A22: Maharashtra | B22: From 01.01.2023 to 30.06.2023 | C22: 10021 | D22: 2444 | E22: =ROUND((C22)*5%,0) -> 501 | F22: 0 | G22: 12966 | H22: 10856 | I22: 2444 | J22: =ROUND((H22)*5%,0) -> 543 | K22: 0 | L22: 13843 | M22: 11632 | N22: 2444 | O22: =ROUND((M22)*5%,0) -> 582 | P22: 0 | Q22: 14658
A23: Meghalaya | B23: From 01.10.2022 To 31.03.2023 | C23: 7800 | D23: 2106 | E23: 0 | F23: 0 | G23: 9906 | H23: 8840 | I23: 2392 | J23: 0 | K23: 0 | L23: 11232 | M23: 9880 | N23: 2678 | O23: 0 | P23: 0 | Q23: 12558
A24: Mizoram | B24: From 01.04.2016 to Till Date | C24: 7020 | D24: 0 | E24: 0 | F24: 0 | G24: 7020 | H24: 7800 | I24: 0 | J24: 0 | K24: 0 | L24: 7800 | M24: 9620 | N24: 0 | O24: 0 | P24: 0 | Q24: 9620
A25: Nagaland | B25: From 14.06.2019 | C25: 5280 | D25: 0 | E25: 0 | F25: 0 | G25: 5280 | H25: 6300 | I25: 0 | J25: 0 | K25: 0 | L25: 6300 | M25: 7050 | N25: 0 | O25: 0 | P25: 0 | Q25: 7050
A26: Odisha | B26: From 01.04.2023 To 30.09.2023 | C26: 7280 | D26: 1690 | E26: 0 | F26: 0 | G26: 8970 | H26: 8320 | I26: 1690 | J26: 0 | K26: 0 | L26: 10010 | M26: 9620 | N26: 1690 | O26: 0 | P26: 0 | Q26: 11310
A27: Pondicherry | B27: From 01.01.2021 | C27: 7433 | D27: 233 | E27: 0 | F27: 0 | G27: 7666 | H27: 7542 | I27: 233 | J27: 0 | K27: 0 | L27: 7775 | M27: 7591 | N27: 233 | O27: 0 | P27: 0 | Q27: 7824
A28: Punjab | B28: From 01.03.2023 To 31.08.2023 | C28: 10354 | D28: 0 | E28: 0 | F28: 0 | G28: 10354 | H28: 11134 | I28: 0 | J28: 0 | K28: 0 | L28: 11134 | M28: 12031 | N28: 0 | O28: 0 | P28: 0 | Q28: 12031
A29: Rajasthan | B29: From 01.07.2021 | C29: 6734 | D29: 0 | E29: 0 | F29: 0 | G29: 6734 | H29: 7046 | I29: 0 | J29: 0 | K29: 0 | L29: 7046 | M29: 7358 | N29: 0 | O29: 0 | P29: 0 | Q29: 7358
A30: Sikkim | B30: From 11.07.2022 | C30: 13000 | D30: 0 | E30: 0 | F30: 0 | G30: 13000 | H30: 13520 | I30: 0 | J30: 0 | K30: 0 | L30: 13520 | M30: 13910 | N30: 0 | O30: 0 | P30: 0 | Q30: 13910
A31: Tamil Nadu | B31: From 01.04.2022 to 31.03.2023 | C31: 5457 | D31: 4698 | E31: 0 | F31: 0 | G31: 10155 | H31: 5507 | I31: 4698 | J31: 0 | K31: 0 | L31: 10205 | M31: 5548 | N31: 4698 | O31: 0 | P31: 0 | Q31: 10246
A32: Telangana | B32: From 01.04.2023 To 30.09.2023 | C32: 4102 | D32: 7731 | E32: 0 | F32: 0 | G32: 11833 | H32: 4520 | I32: 7731 | J32: 0 | K32: 0 | L32: 12251 | M32: 4722 | N32: 7731 | O32: 0 | P32: 0 | Q32: 12453
A33: Tripura | B33: From 01.10.2022 To 31.03.2023 | C33: 6093 | D33: 1030 | E33: 0 | F33: 0 | G33: 7123 | H33: 6684 | I33: 1130 | J33: 0 | K33: 0 | L33: 7814 | M33: 7475 | N33: 1264 | O33: 0 | P33: 0 | Q33: 8739
A34: Ladakh | B34: From 04.11.2022 To | C34: 11700 | D34: 0 | E34: 0 | F34: 0 | G34: 11700 | H34: 13910 | I34: 0 | J34: 0 | K34: 0 | L34: 13910 | M34: 14950 | N34: 0 | O34: 0 | P34: 0 | Q34: 14950
A35: Uttar Pradesh | B35: From 01.04.2023 To 30.09.2023 | C35: 5750 | D35: 4339 | E35: 0 | F35: 0 | G35: 10089 | H35: 6325 | I35: 4773 | J35: 0 | K35: 0 | L35: 11098 | M35: 7085 | N35: 5347 | O35: 0 | P35: 0 | Q35: 12432
A36: Uttarakhand | B36: From 01.04.2023 To 30.09.2023 | C36: 8331 | D36: 1560 | E36: 0 | F36: 0 | G36: 9891 | H36: 8924 | I36: 1560 | J36: 0 | K36: 0 | L36: 10484 | M36: 9518 | N36: 1560 | O36: 0 | P36: 0 | Q36: 11078
A37: West Bengal | B37: From 01.01.2023 to 30.06.2023 | C37: 9784 | D37: 0 | E37: 0 | F37: 0 | G37: 9784 | H37: 10763 | I37: 0 | J37: 0 | K37: 0 | L37: 10763 | M37: 11840 | N37: 0 | O37: 0 | P37: 0 | Q37: 11840
